Cogmind - Beta 11.1 @@@ ROGUE MODE // 2022.07.09 @ 21:17:53 Player: ktur Result: Destroyed by MAIN.C with Omega Cannon Performance ------------- Evolutions (9) 4500 Regions Visited (37) 7400 Robots Destroyed (252) 1260 Value Destroyed (7784) 7784 Prototype IDs (166) 3320 Alien Tech Used (6) 1200 Bonus (25418) 25418 TOTAL SCORE: 50882 Bonus ------- High Alert Combat Kills 563 Follower Combat Kills 3664 Network Hubs Disabled 800 Aligned with FarCom 300 Met Data Miner 300 Met Zhirov 300 Met Warlord at Base 500 MAIN.C Attacked Warlord 500 Built Enhanced Grunts 300 Met R17 at Cetus 500 Used Core Reset Matrix 3000 Met R17 at Research 2000 Met Warlord at Research 2000 Met MAIN.C 5000 Destroyed MAIN.C Shell 5000 Met Warlord at Command 2000 Friendly Fire -1309 Cogmind --------- Core Integrity 0/1600 Matter 189/300 Energy 95/100 System Corruption 11% Temperature Cool (0) Movement Flying (30) Location -1/Command Parts ------- > --- POWER (2) -------- (None) > --- PROPULSION (8) --- Improved Diametric Drive > --- UTILITY (13) ----- Femtoactuators Improved Hacking Suite Advanced Hacking Suite System Shield Spacefold Activator > --- WEAPON (2) ------- Vortex Lance > --- INVENTORY (5) ---- Quantum Reactor Transdimensional Reconstructor Field Lobotomy Kit (4) Field Lobotomy Kit (2) Vortex Lance (40) Peak State ------------ > --- POWER ------------ (None) > --- PROPULSION ------- Field Propulsion Array Field Propulsion Array Field Propulsion Array Improved Diametric Drive Experimental Q-thruster > --- UTILITY ---------- Superbattery Experimental Terrain Scan Processor Femtoactuators Advanced Transmission Jammer Experimental ECM Suite Experimental Reaction Control System Advanced Cloaking Device Centrium Light Armor Plating Improved Hacking Suite Advanced Hacking Suite System Mapper System Shield Spacefold Activator > --- WEAPON ----------- Mini Smartbomb Launcher Plasma Lance > --- INVENTORY -------- Transdimensional Reconstructor Subatomic Replicator Field Lobotomy Kit Vortex Lance Vortex Lance [Rating: 189] Favorites ----------- Power Light Ion Engine Engine Light Ion Engine Power Core Light Nuclear Core Reactor Light Antimatter Reactor Propulsion Light Treads Treads Light Treads Leg Enhanced Flexi-carbon Leg Wheel Compact Wheel Flight Unit Biomechanical Wings Utility System Mapper Device Experimental Sensor Array Storage Large Storage Unit Processor Targeting Computer Hackware System Mapper Protection Hardened Medium Armor Plating Artifact Spacefold Activator Weapon Light Cannon Energy Gun Precision Beam Rifle Energy Cannon Enhanced Nova Cannon Ballistic Gun Enhanced Autogun Ballistic Cannon Light Cannon Launcher Mini Smartbomb Launcher Special Weapon Plasma Cutter Slashing Weapon Greatsword Piercing Weapon Plasma Lance Special Melee Weapon Datajack Build | -11 -10 -10 -10 -9 -8 -7 -7 -7 -6 -6 -6 -6 -6 -6 -6 -6 -5 -5 -5 -5 -5 -5 -4 -4 -4 -4 -4 -4 -4 -3 -3 -3 -2 -2 -2 -1 -1 ------- Run | Scr Mat Min Exi Min Mat Fac Low Dat Pro Fac Was Fac Ext Cet Arc Hub Fac Was Fac Upp Upp War Pro Fac Was Fac Upp Upp Zhi Pro Res Tes Res Qua Sec Acc Com Slots Evolved 18 | . . . . . 4 2 . . . 2 . . . . . . 2 . . . . . . 2 . . . . . . 2 . 2 . . 2 . Power 1 | . . . . . . . . . . . . . . . . . . . . . . . . 1 . . . . . . . . . . . . . Propulsion 6 | . . . . . 1 . . . . 1 . . . . . . . . . . . . . 1 . . . . . . 1 . 2 . . . . Utility 11 | . . . . . 3 2 . . . 1 . . . . . . 2 . . . . . . . . . . . . . 1 . . . . 2 . Weapon . | . . . . . . . . . . . . . . . . . . . . . . . . . . . . . . . . . . . . . . Parts Attached 401 | 6 20 3 3 7 52 40 . 2 6 7 . 2 3 14 11 8 34 . 53 3 . 13 . 21 . 8 . . 3 . 6 23 13 6 12 11 11 Power 41 | 1 2 1 . . 3 2 . . 2 1 . . . . . 3 4 . 4 . . 1 . 3 . 5 . . 1 . 1 2 . 2 . 1 2 Engine 13 | 1 2 1 . . 1 1 . . 1 . . . . . . 2 2 . . . . . . . . 1 . . . . . . . . . . 1 Core 15 | . . . . . 2 1 . . . . . . . . . . 2 . 4 . . 1 . 2 . 2 . . . . . 1 . . . . . Reactor 13 | . . . . . . . . . 1 1 . . . . . 1 . . . . . . . 1 . 2 . . 1 . 1 1 . 2 . 1 1 Propulsion 71 | 2 3 . . 1 9 9 . . . 2 . . . 1 3 1 8 . 7 . . 2 . 7 . . . . . . 1 6 3 2 1 3 . Treads 15 | 2 3 . . 1 8 . . . . . . . . . . . . . . . . . . 1 . . . . . . . . . . . . . Leg 2 | . . . . . . . . . . . . . . . 2 . . . . . . . . . . . . . . . . . . . . . . Wheel 1 | . . . . . 1 . . . . . . . . . . . . . . . . . . . . . . . . . . . . . . . . Hover . | . . . . . . . . . . . . . . . . . . . . . . . . . . . . . . . . . . . . . . Flight 53 | . . . . . . 9 . . . 2 . . . 1 1 1 8 . 7 . . 2 . 6 . . . . . . 1 6 3 2 1 3 . Utility 183 | 1 2 . 1 1 18 24 . . 2 3 . 2 3 9 6 3 15 . 37 1 . 6 . 9 . 2 . . 2 . 4 4 10 1 6 6 5 Device 99 | . . . . . 6 14 . . 1 1 . 2 3 8 5 . 9 . 18 1 . 4 . 3 . 1 . . 1 . 2 3 7 1 5 2 2 Storage 15 | 1 1 . 1 1 . 1 . . . 1 . . . . 1 . 1 . 3 . . . . 1 . . . . . . . . 1 . . 1 1 Processor 8 | . 1 . . . 1 2 . . . . . . . . . . . . 2 . . 1 . . . 1 . . . . . . . . . . . Hackware 35 | . . . . . 3 7 . . 1 1 . . . . . 2 2 . 8 . . 1 . 4 . . . . 1 . 2 1 . . . 1 1 Protection 25 | . . . . . 8 . . . . . . . . 1 . 1 3 . 6 . . . . 1 . . . . . . . . 2 . 1 1 1 Artifact 1 | . . . . . . . . . . . . . . . . . . . . . . . . . . . . . . . . . . . . 1 . Weapon 106 | 2 13 2 2 5 22 5 . 2 2 1 . . . 4 2 1 7 . 5 2 . 4 . 2 . 1 . . . . . 11 . 1 5 1 4 Energy Gun 9 | 1 . . . . 6 . . . . . . . . . . . 1 . . . . 1 . . . . . . . . . . . . . . . Energy Cannon 4 | . . . . . . . . . . . . . . . . . . . . . . . . . . . . . . . . 2 . . 2 . . Ballistic Gun 21 | 1 5 . . 2 9 . . . . . . . . . . . 2 . 2 . . . . . . . . . . . . . . . . . . Ballistic Cannon 18 | . 8 2 1 2 3 . . . . . . . . . . . . . . . . . . . . . . . . . . 2 . . . . . Launcher 19 | . . . . 1 2 . . . . . . . . 2 . . 3 . 1 1 . . . . . 1 . . . . . 3 . 1 1 1 2 Special Weapon 4 | . . . . . . . . 1 1 . . . . . 1 . . . . . . . . . . . . . . . . . . . . . 1 Impact Weapon . | . . . . . . . . . . . . . . . . . . . . . . . . . . . . . . . . . . . . . . Slashing Weapon 16 | . . . . . 1 3 . 1 1 1 . . . 2 1 1 1 . . 1 . 2 . 1 . . . . . . . . . . . . . Piercing Weapon 9 | . . . . . . . . . . . . . . . . . . . . . . 1 . 1 . . . . . . . 4 . . 2 . 1 Special Melee Weapon 6 | . . . 1 . 1 2 . . . . . . . . . . . . 2 . . . . . . . . . . . . . . . . . . Unidentified Prototypes 34 | . . . . . 4 3 . . 1 1 . . . 1 3 . 3 . . . . 6 . 1 . . . . 3 . . 4 . 2 . . 2 Parts Lost 68 | . . 1 . . 13 1 . . . . . . . 1 . 6 4 . 12 . . . . 1 . 2 1 . . . 1 . 5 . 5 2 13 Power 8 | . . 1 . . 1 . . . . . . . . . . 1 1 . 2 . . . . . . 1 . . . . . . 1 . . . . Propulsion 19 | . . . . . 3 . . . . . . . . 1 . 2 1 . 4 . . . . . . . . . . . . . 1 . 3 . 4 Utility 31 | . . . . . 4 1 . . . . . . . . . 2 1 . 4 . . . . 1 . 1 1 . . . 1 . 3 . 2 2 8 Weapon 10 | . . . . . 5 . . . . . . . . . . 1 1 . 2 . . . . . . . . . . . . . . . . . 1 Highest Loss Streak 10 | . . 1 . . 10 1 . . . . . . . 1 . 4 2 . 6 . . . . 1 . 2 1 . . . 1 . 3 . 3 2 9 To Critical Strikes . | . . . . . . . . . . . . . . . . . . . . . . . . . . . . . . . . . . . . . . Average Slot Usage (%) 91 | . 91 99 100 100 96 95 . 84 90 90 93 93 92 91 92 85 87 94 85 76 76 90 100 87 89 91 85 84 86 89 79 89 80 85 84 73 73 Engine 3 | . 13 13 14 14 2 1 . . 1 . . . . . . 1 . . . . . . . . . . . . . . . . . . . . 1 Core 2 | . . . . . 6 5 . 7 1 . . . . . . . 3 5 4 . . 1 5 4 5 4 . . . . . . . . . . . Reactor 1 | . . . . . . . . . 3 5 6 6 6 6 6 4 . . . . . . . . . 4 5 5 5 5 4 4 3 3 4 . . Treads 11 | . 27 28 28 28 25 . . . . . . . . . . . . . . . . . . . . . . . . . . . . . . . . Flight 12 | . . . . . . 22 . 23 23 26 26 26 26 26 25 24 21 23 14 11 11 19 23 20 21 21 21 21 21 21 18 22 21 27 26 15 18 Device 6 | . . . . . 5 6 . 7 13 11 13 13 12 11 12 13 9 11 10 5 5 4 5 5 5 9 6 5 5 5 4 13 12 12 18 19 11 Storage 8 | . 14 14 14 14 9 7 . 7 7 6 6 6 6 6 6 6 6 11 6 5 5 5 5 5 5 5 5 5 5 5 4 4 4 4 4 4 7 Processor 11 | . 6 14 14 14 17 15 . 15 15 13 13 13 13 13 13 9 3 . 6 5 5 5 5 5 5 5 10 10 10 10 9 9 8 8 5 4 3 Hackware 15 | . . . . . 4 22 . 15 15 19 20 20 20 20 20 19 29 29 31 35 35 39 41 33 31 30 26 26 28 31 28 23 20 17 13 13 14 Protection 2 | . . . . . 7 . . . . . . . . . . . 2 5 1 . . . . 1 5 . . . . . . . . 4 4 4 3 Energy Gun 1 | . . . . . 7 . . . . . . . . . . . . . . . . . . . . . . . . . . . . . . . . Ballistic Gun 2 | . 10 3 . . 8 . . . . . . . . . . . . . . . . . . . . . . . . . . . . . . . . Ballistic Cannon 4 | . 17 24 24 27 1 . . . . . . . . . . . . . . . . . . . . . . . . . . . . . . . . Launcher 1 | . . . . . . . . . . . . . . . . . . . . 4 5 5 5 5 5 4 5 5 5 5 4 3 4 3 4 4 2 Slashing Weapon 2 | . . . . . . 6 . 5 6 5 6 6 6 5 1 5 4 5 5 5 5 4 5 2 . . . . . . . . . . . . . Naked Turns . | . . . . . . . . . . . . . . . . . . . . . . . . . . . . . . . . . . . . . . Heaviest Build 102 | 11 49 49 49 89 102 89 16 16 23 38 38 38 49 49 49 38 47 40 40 12 11 16 16 35 35 43 31 30 30 30 31 40 43 47 61 24 56 Greatest Support 60 | 40 40 40 40 40 60 20 16 16 36 39 39 39 39 39 38 38 43 40 42 13 16 29 29 38 38 38 38 38 38 38 38 46 54 55 55 58 58 Greatest Overweight (x) 28 | . 1 1 1 2 28 7 . . . . . . 2 2 2 1 2 . 1 . . . . 1 . 1 . . . . 1 . 1 . 1 . 1 Average Overweight (x) . | . . 1 1 1 1 . . . . . . . . . . . . . . . . . . . . . . . . . . . . . . . . Largest Inventory Capacity 25 | 8 20 20 20 25 25 25 8 8 8 15 15 15 15 15 15 15 15 15 15 5 5 5 5 10 10 10 10 10 10 10 10 10 15 15 15 15 10 Average Capacity 16 | 7 19 20 20 22 25 8 8 8 8 8 15 15 15 15 15 15 15 15 14 5 5 5 5 9 10 10 10 10 10 10 10 10 13 15 15 5 9 Most Carried 25 | 6 20 20 20 22 25 24 8 8 8 8 14 15 15 15 15 15 15 15 15 5 4 5 5 10 10 10 10 10 10 10 10 10 15 15 15 14 8 Average Carried 15 | 2 16 19 19 20 24 7 8 7 7 7 12 14 14 14 14 14 12 14 13 4 4 4 5 8 9 9 10 10 9 10 8 9 12 14 13 5 6 Final Capacity 25 | 8 20 20 20 25 25 8 8 8 8 15 15 15 15 15 15 15 15 15 5 5 5 5 5 10 10 10 10 10 10 10 10 10 15 15 15 5 5 Final Carried 25 | 6 20 20 20 22 25 8 8 8 8 8 14 15 15 15 15 13 15 15 5 4 4 5 5 9 9 10 10 10 10 10 9 10 14 15 15 5 5 Class Distribution -------------------- 35% | Mutant 16% | Wizard-Sprinter 15% | Wizard-Scout 9% | Wizard-Mutant 6% | Hacker-Scout 4% | Hacker-Mutant 4% | Hacker-Sprinter 3% | Wizard-Ninja Dominant Class ---------------- Mutant | -10/Materials Mutant | -10/Mines Mutant | -10/Exiles Mutant | -9/Mines Mutant | -8/Materials Hacker-Scout | -7/Factory Hacker-Scout | -7/Lower Caves Hacker-Scout | -7/Data Miner Hacker-Scout | -6/Proximity Caves Wizard-Scout | -6/Factory Wizard-Scout | -6/Waste Wizard-Scout | -6/Factory Wizard-Scout | -6/Extension Wizard-Scout | -6/Cetus Wizard-Scout | -6/Archives Wizard-Scout | -6/Hub_04(d) Wizard-Sprinter | -5/Factory Wizard-Sprinter | -5/Waste Wizard-Mutant | -5/Factory Wizard-Mutant | -5/Upper Caves Wizard-Mutant | -5/Upper Caves Wizard-Sprinter | -5/Warlord Wizard-Sprinter | -4/Proximity Caves Wizard-Sprinter | -4/Factory Wizard-Sprinter | -4/Waste Wizard-Sprinter | -4/Factory Wizard-Sprinter | -4/Upper Caves Wizard-Sprinter | -4/Upper Caves Wizard-Sprinter | -4/Zhirov Wizard-Sprinter | -3/Proximity Caves Wizard-Sprinter | -3/Research Wizard-Ninja | -3/Testing Wizard-Sprinter | -2/Research Wizard-Sprinter | -2/Quarantine Hacker-Sprinter | -2/Section 7 Hacker-Sprinter | -1/Access Hacker-Sprinter | -1/Command Resources | -11 -10 -10 -10 -9 -8 -7 -7 -7 -6 -6 -6 -6 -6 -6 -6 -6 -5 -5 -5 -5 -5 -5 -4 -4 -4 -4 -4 -4 -4 -3 -3 -3 -2 -2 -2 -1 -1 ----------- Run | Scr Mat Min Exi Min Mat Fac Low Dat Pro Fac Was Fac Ext Cet Arc Hub Fac Was Fac Upp Upp War Pro Fac Was Fac Upp Upp Zhi Pro Res Tes Res Qua Sec Acc Com Matter Collected 7521 | 187 694 454 . 74 1270 390 . . 99 61 10 137 163 225 110 30 522 . 889 266 44 171 . 140 . 180 20 17 . . 150 286 49 126 282 27 448 Remotely . | . . . . . . . . . . . . . . . . . . . . . . . . . . . . . . . . . . . . . . Salvage Created 9948 | . 670 207 . 71 2309 740 . . 30 135 . 26 128 122 360 262 627 . 807 313 . . . 191 . 180 . . . . 305 345 721 47 199 78 1075 Parts 446 | . 38 17 . 7 133 25 . . 5 4 . 3 5 5 48 6 15 . 27 7 . . . 12 . 9 . . . . 5 11 22 . 9 6 27 Haulers Intercepted 18 | . 2 . . . 6 . . . . 1 . . . . . . 1 . 3 . . . . . . . . . . . 1 1 3 . . . . Recyclers Shooed 10 | . 5 . . . . 2 . . . . . . . . . . 2 . . . . . . . . . . . . . . 1 . . . . . Parts Field Recycled . | . . . . . . . . . . . . . . . . . . . . . . . . . . . . . . . . . . . . . . Retrieved Matter . | . . . . . . . . . . . . . . . . . . . . . . . . . . . . . . . . . . . . . . Parts Self-Destructed 8 | . . . . . . . . . . . . . . . . . . . . 7 . . . . . . 1 . . . . . . . . . . Prevented . | . . . . . . . . . . . . . . . . . . . . . . . . . . . . . . . . . . . . . . Kills | -11 -10 -10 -10 -9 -8 -7 -7 -7 -6 -6 -6 -6 -6 -6 -6 -6 -5 -5 -5 -5 -5 -5 -4 -4 -4 -4 -4 -4 -4 -3 -3 -3 -2 -2 -2 -1 -1 ------- Run | Scr Mat Min Exi Min Mat Fac Low Dat Pro Fac Was Fac Ext Cet Arc Hub Fac Was Fac Upp Upp War Pro Fac Was Fac Upp Upp Zhi Pro Res Tes Res Qua Sec Acc Com Combat Hostiles Destroyed 145 | . 16 9 . 4 36 . . . . . . . 1 3 . . 15 . 5 12 . . . 5 . 1 . . . . . . 5 . 8 5 20 Melee 3 | . . . . . . . . . . . . . 1 . . . 1 . . . . . . . . . . . . . . . . . . . 1 Guns 31 | . 4 2 . . 24 . . . . . . . . . . . 1 . . . . . . . . . . . . . . . . . . . . Cannons 31 | . 12 7 . . 12 . . . . . . . . . . . . . . . . . . . . . . . . . . . . . . . . AOE 80 | . . . . 4 . . . . . . . . . 3 . . 13 . 5 12 . . . 5 . 1 . . . . . . 5 . 8 5 19 Classes Destroyed 15 | . 5 1 . . 4 . . . . . . . . 2 . . 1 . 1 1 . . . . . . . . . . . . . . . . . Worker 14 | . . 1 . . 4 5 . . . . . . . . . . . . 1 . . . . 1 . . . . . . . . . . . . 2 Tunneler 2 | . . . . . 1 1 . . . . . . . . . . . . . . . . . . . . . . . . . . . . . . . Hauler 18 | . 2 . . . 6 . . . . 1 . . . . . . 1 . 3 . . . . . . . . . . . 1 1 3 . . . . Recycler 30 | . 3 . . 1 4 8 . . . . . . . . . 2 2 . 3 . . . . 1 . . . . . . 1 1 3 . . . 1 Mechanic 1 | . . . . . . . . . . . . . . . . . . . . . . . . . . . . . . . 1 . . . . . . Operator 18 | . 3 . . . 3 . . . . . . . 1 . 9 . 1 . . . . . . . . . . . . . . . . . . . 1 Drone 2 | . . . . . . . . . . . . . . 1 . . 1 . . . . . . . . . . . . . . . . . . . . Watcher 22 | . . . . . 4 2 . . . 1 . 1 2 . . . 2 . 2 . . . . 1 . 2 . . . . . 2 1 1 1 . . Swarmer 80 | . 9 5 . 4 7 . . . . . . . . 2 . . 4 . . 6 . . . 5 . . . . . . . . 5 . 9 5 19 Grunt 42 | . 7 4 . . 19 . . . . . . . . 1 . . 7 . 1 2 . . . . . 1 . . . . . . . . . . . Duelist 5 | . . . . . 1 . . . . . . . . . . . 1 . . 3 . . . . . . . . . . . . . . . . . Sentry 11 | . . . . . 9 . . . . . . . 1 . . . . . . 1 . . . . . . . . . . . . . . . . . Hunter 4 | . . . . . . . . . . . . . . . . . 2 . 2 . . . . . . . . . . . . . . . . . . Programmer 2 | . . . . . . . . . . . . . . . . . . . 2 . . . . . . . . . . . . . . . . . . Samaritan 1 | . . . . . . . . . . . . . . . . . . . . 1 . . . . . . . . . . . . . . . . . Surgeon 1 | . . . . . . . . . . . . . . 1 . . . . . . . . . . . . . . . . . . . . . . . Best Kill Streak 14 | . 5 4 . 4 6 5 . . . 1 . 1 1 2 6 2 14 . 8 6 . . . 6 . 1 . . . . 2 2 5 1 4 5 10 Combat Bots Only 12 | . 3 3 . 4 6 . . . . . . . 1 2 . . 12 . 5 6 . . . 5 . 1 . . . . . . 5 . 4 5 10 Max Kills in Single Turn 6 | . 1 2 . 2 1 1 . . 1 1 . 1 1 1 1 1 3 . 5 6 . . . 3 . 1 . . . . 1 1 3 1 3 3 3 Gunslinging . | . . . . . . . . . . . . . . . . . . . . . . . . . . . . . . . . . . . . . . Exploded 5 | . . . . 2 . . . . . . . . . 1 . . 3 . 4 5 . . . 2 . 1 . . . . . . 3 . 2 3 3 Melee 1 | . . . . . . . . . . . . . 1 . . . 1 . . . . . . . . . . . . . . . . . . . 1 Uniques/NPCs Destroyed 2 | . . . . . . . . . 1 . . . . . . . . . . . . . . . . . . . . . . . . . . . 1 Data Miner (-6/Proximity Caves) MAIN.C Shell (-1/Command) Combat | -11 -10 -10 -10 -9 -8 -7 -7 -7 -6 -6 -6 -6 -6 -6 -6 -6 -5 -5 -5 -5 -5 -5 -4 -4 -4 -4 -4 -4 -4 -3 -3 -3 -2 -2 -2 -1 -1 -------- Run | Scr Mat Min Exi Min Mat Fac Low Dat Pro Fac Was Fac Ext Cet Arc Hub Fac Was Fac Upp Upp War Pro Fac Was Fac Upp Upp Zhi Pro Res Tes Res Qua Sec Acc Com Damage Taken 12883 | . 407 362 . 44 2247 56 . . . 108 . . 135 207 . 401 775 . 1439 . 24 . . 82 . 641 40 . . . 111 178 697 262 757 803 3107 Core 3308 | . 114 97 . 3 291 23 . . . 12 . . 41 40 . 121 177 . 253 . . . . . . 163 23 . . . 38 50 138 . 61 382 1281 Absorbed by Shields 38 | . . . . . . . . . . . . . . . . . . . . . . . . 12 . 26 . . . . . . . . . . . Regen/Repaired (Parts) 1749 | . 88 . . . 143 . . . . 131 . . . . . . 46 . . . . . . 120 . 193 . . . . 123 84 . 57 42 722 . Core Remaining (%) 72 | 100 . . . 14 47 . . . 96 . . . . . . 74 . . . . . . 57 . . . . . . 83 . 93 . . 86 . . Volleys Fired 458 | . 81 26 . 5 148 . . 1 4 . . . . 6 112 . 18 . 8 12 . . . 4 . . . . . . . 7 2 . 7 2 15 Largest 2 | . 2 2 . 2 2 . . 1 1 . . . . 1 1 . 1 . 1 1 . . . 1 . . . . . . . 1 1 . 1 1 1 Hottest 120 | . 70 70 . 70 86 . . . 20 . . . . 43 20 . 43 . 35 80 . . . 80 . . . . . . . 66 80 . 120 80 80 Shots Fired 634 | . 127 52 . 10 248 . . 1 4 . . . . 6 112 . 18 . 8 11 . . . 4 . . . . . . . 7 2 . 7 2 15 Gun 287 | . 73 8 . . 194 . . . . . . . . . . . 4 . 8 . . . . . . . . . . . . . . . . . . Cannon 166 | . 54 44 . 7 52 . . . . . . . . . . . . . . . . . . . . . . . . . . 7 . . 2 . . Launcher 62 | . . . . 3 2 . . . . . . . . 6 . . 14 . . 11 . . . 4 . . . . . . . . 2 . 5 2 13 Special 119 | . . . . . . . . 1 4 . . . . . 112 . . . . . . . . . . . . . . . . . . . . . 2 Kinetic 366 | . 127 52 . 7 161 . . . . . . . . . . . 4 . 8 . . . . . . . . . . . . 7 . . . . . Thermal 203 | . . . . . 85 . . . 4 . . . . . 112 . . . . . . . . . . . . . . . . . . . 2 . . Explosive 62 | . . . . 3 2 . . . . . . . . 6 . . 14 . . 11 . . . 4 . . . . . . . . 2 . 5 2 13 Electromagnetic . | . . . . . . . . . . . . . . . . . . . . . . . . . . . . . . . . . . . . . . Robot Hit Streak 23 | . 13 5 . 4 23 . . 8 12 . . . . 2 4 . 13 . 6 . . . . 2 . . . . . . . . 4 . 8 . 13 Robot Miss Streak 11 | . 4 4 . . 4 . . . . . . . . 2 11 . 1 . 1 . . . . . . . . . . . . . . . . . . Penetration Max 1 | . . . . . . . . . . . . . . . . . . . 1 . . . . . . . . . . . . . . . . . . Secondary Targets 1 | . . . . . 1 . . . . . . . . . . . . . . . . . . . . . . . . . . . . . . . . Max Gunslinging Chain 1 | . . . . . 1 . . . . . . . . . . . . . . . . . . . . . . . . . . . . . . . . Shots Hit Robots 526 | . 79 29 1 2 183 22 . 1 4 4 . 1 7 2 50 3 29 . 18 . . . . 6 . 5 . . . . 5 8 13 2 5 . 47 Core Hits 375 | . 30 13 . 5 99 12 . . 3 1 . . 3 9 24 2 38 . 18 17 . . . 6 . 5 . . . . 2 4 14 . 14 8 48 Critical Kills 1 | . 1 . . . . . . . . . . . . . . . . . . . . . . . . . . . . . . . . . . . . Critical Parts Destroyed 3 | . . . . . 1 . . . . . . . . . . . . . 2 . . . . . . . . . . . . . . . . . . Critical Strikes 24 | . 3 . . . 8 . . . . . . . . . 2 . . . 3 . . . . 1 . 3 . . . . . 1 1 1 . . 1 Burn 4 | . . . . . 4 . . . . . . . . . . . . . . . . . . . . . . . . . . . . . . . . Destroy 4 | . 1 . . . 1 . . . . . . . . . . . . . 2 . . . . . . . . . . . . . . . . . . Blast 5 | . 2 . . . 3 . . . . . . . . . . . . . . . . . . . . . . . . . . . . . . . . Sever 3 | . . . . . . . . . . . . . . . 2 . . . 1 . . . . . . . . . . . . . . . . . . Impale 8 | . . . . . . . . . . . . . . . . . . . . . . . . 1 . 3 . . . . . 1 1 1 . . 1 Melee Attacks 440 | . . . 1 . 2 66 . . 2 22 . 9 13 1 9 7 43 . 47 . . . . 21 . 31 . . . . 15 34 36 9 9 4 59 Impact . | . . . . . . . . . . . . . . . . . . . . . . . . . . . . . . . . . . . . . . Slashing 231 | . . . . . 1 65 . . 2 22 . 9 13 1 9 7 43 . 46 . . . . 13 . . . . . . . . . . . . . Piercing 187 | . . . . . . . . . . . . . . . . . . . . . . . . 8 . 31 . . . . 15 34 36 9 9 4 41 Entropic 18 | . . . . . . . . . . . . . . . . . . . . . . . . . . . . . . . . . . . . . 18 Sneak Attacks 52 | . . . 1 . 1 15 . . . 2 . . 1 . 5 3 3 . 7 . . . . 1 . . . . . . 3 2 7 . . . 1 Combat Hostiles . | . . . . . . . . . . . . . . . . . . . . . . . . . . . . . . . . . . . . . . Follow-up Attacks . | . . . . . . . . . . . . . . . . . . . . . . . . . . . . . . . . . . . . . . Damage Inflicted 27088 | . 1138 484 . 285 3477 1555 . . 42 360 . 63 499 670 1338 287 3355 . 2088 1123 . . . 802 . 499 . . . . 333 514 1531 150 1012 558 4925 Guns 3091 | . 671 41 . . 2310 . . . . . . . . . . . 23 . 46 . . . . . . . . . . . . . . . . . . Cannons 1701 | . 450 426 . 40 785 . . . . . . . . . . . . . . . . . . . . . . . . . . . . . . . . Explosions 11424 | . . . . 245 268 . . . . . . . . 670 . . 2689 . 1305 1123 . . . 587 . 230 . . . . . . 495 . 922 558 2332 Melee 10161 | . . . . . . 1555 . . . 360 . 63 499 . 821 287 643 . 735 . . . . 215 . 269 . . . . 333 514 1036 150 88 . 2593 Ramming 152 | . 17 17 . . 114 . . . . . . . . . . . . . 2 . . . . . . . . . . . . . . . 2 . . Kinetic 3600 | . 1121 467 . 40 1903 . . . . . . . . . . . 23 . 46 . . . . . . . . . . . . . . . . . . Thermal 2366 | . . . . . 1192 . . . 42 . . . . . 517 . . . 385 . . . . . . 230 . . . . . . . . . . . Explosive 10809 | . . . . 245 268 . . . . . . . . 670 . . 2689 . 920 1123 . . . 587 . . . . . . . . 495 . 922 558 2332 Electromagnetic . | . . . . . . . . . . . . . . . . . . . . . . . . . . . . . . . . . . . . . . Impact . | . . . . . . . . . . . . . . . . . . . . . . . . . . . . . . . . . . . . . . Slashing 5068 | . . . . . . 1555 . . . 360 . 63 499 . 821 287 643 . 735 . . . . 105 . . . . . . . . . . . . . Piercing 3802 | . . . . . . . . . . . . . . . . . . . . . . . . 110 . 269 . . . . 333 514 1036 150 88 . 1302 Entropic 1291 | . . . . . . . . . . . . . . . . . . . . . . . . . . . . . . . . . . . . . 1291 Highest Corruption 11 | . . . . . 1 . . . . . . . . . . 1 . 6 10 10 10 10 . . 7 9 9 9 9 9 . . 1 1 1 1 11 Average Corruption 4 | . . . . . 1 . . . . . . . . . . 1 . 6 7 10 10 10 . . 7 7 9 9 9 9 . . 1 1 1 1 1 Corruption Purged . | . . . . . . . . . . . . . . . . . . . . . . . . . . . . . . . . . . . . . . Corruption Blocked 30 | . . . . . . . . . . . . . . . . . . . . . . . . . . . . . . . . . . . . . 30 Effects 120 | . . . . . 5 . . . . . . . . . . 2 . 1 57 11 4 1 . . . 18 6 3 1 1 . . 1 . 3 1 5 Message Errors 33 | . . . . . 1 . . . . . . . . . . 1 . 1 14 4 1 1 . . . 3 3 1 . . . . . . 2 . 1 Matter Fused 21 | . . . . . 1 . . . . . . . . . . . . . 6 4 2 . . . . 5 1 . . . . . . . . . 2 Heat Flow Errors 14 | . . . . . 1 . . . . . . . . . . . . . 4 . 1 . . . . 3 . 1 . 1 . . 1 . 1 1 . Energy Discharges 16 | . . . . . . . . . . . . . . . . . . . 10 . . . . . . 2 1 1 . . . . . . . . 2 Parts Rejected 1 | . . . . . . . . . . . . . . . . . . . 1 . . . . . . . . . . . . . . . . . . Data Loss (minor) 26 | . . . . . 2 . . . . . . . . . . 1 . . 17 1 . . . . . 3 1 . 1 . . . . . . . . Data Loss (major) 6 | . . . . . . . . . . . . . . . . . . . 3 1 . . . . . 2 . . . . . . . . . . . Alerts 2 | . . . . . . . . . . . . . . . . . . . 2 . . . . . . . . . . . . . . . . . . Weapon Failures 1 | . . . . . . . . . . . . . . . . . . . . 1 . . . . . . . . . . . . . . . . . Overload Shots . | . . . . . . . . . . . . . . . . . . . . . . . . . . . . . . . . . . . . . . Overflow Damage 2607 | . . . . 12 8 355 . . . 92 . 28 118 26 318 56 333 . 215 51 . . . 173 . 62 . . . . 62 66 329 84 30 15 174 Projectiles 10 | . . . . . 8 . . . . . . . . . 2 . . . . . . . . . . . . . . . . . . . . . . Explosions 636 | . . . . 12 . . . . . . . . . 26 . . 183 . 185 51 . . . 46 . . . . . . . . . . 30 15 88 Melee 1961 | . . . . . . 355 . . . 92 . 28 118 . 316 56 150 . 30 . . . . 127 . 62 . . . . 62 66 329 84 . . 86 Knockbacks 25 | . 6 2 . 1 16 . . . . . . . . . . . . . . . . . . . . . . . . . . . . . . . . Impact 1 | . . . . . 1 . . . . . . . . . . . . . . . . . . . . . . . . . . . . . . . . Kinetic 23 | . 6 2 . 1 14 . . . . . . . . . . . . . . . . . . . . . . . . . . . . . . . . Secondary 1 | . . . . . 1 . . . . . . . . . . . . . . . . . . . . . . . . . . . . . . . . Self-Inflicted Damage 373 | . . . . 6 70 . . . . . . . . 39 . . 118 . 1 . . . . 49 . . . . . . . . . . 51 . 39 Shots 9 | . . . . 1 2 . . . . . . . . 1 . . 2 . . . . . . 1 . . . . . . . . . . 1 . 1 Rammed 19 | . 5 2 . 1 9 . . . . . . . . . . . . . 1 . . . . . . . . . . . . . . . 1 . . Targets Rammed 20 | . 5 2 . 1 10 . . . . . . . . . . . . . 1 . . . . . . . . . . . . . . . 1 . . Kicked . | . . . . . . . . . . . . . . . . . . . . . . . . . . . . . . . . . . . . . . Crushed 1 | . . . . . 1 . . . . . . . . . . . . . . . . . . . . . . . . . . . . . . . . Highest Temperature 356 | . 57 134 . 9 356 . . . . . . . . . . 18 22 . 260 2 79 . . 56 . 263 . 93 . 118 15 90 228 314 328 218 65 Average Temperature 76 | . 20 59 . 5 86 . . . . . . . . . . 13 9 . 111 2 59 . . 23 . 87 . 49 . 84 10 16 14 151 107 119 28 Received Heat Transfer 2301 | . 78 153 . . 1089 18 . . . 30 . . . . . 123 126 . 204 . . . . . . 105 . . . . 21 30 45 36 27 9 207 Effects 7 | . . . . . 3 . . . . . . . . . . . . . . . . . . . . 2 . . . . . . . . 2 . . Energy Bleed 1 | . . . . . 1 . . . . . . . . . . . . . . . . . . . . . . . . . . . . . . . . Interference 6 | . . . . . 2 . . . . . . . . . . . . . . . . . . . . 2 . . . . . . . . 2 . . Siege Activations . | . . . . . . . . . . . . . . . . . . . . . . . . . . . . . . . . . . . . . . Robots Corrupted . | . . . . . . . . . . . . . . . . . . . . . . . . . . . . . . . . . . . . . . Combat Hostiles . | . . . . . . . . . . . . . . . . . . . . . . . . . . . . . . . . . . . . . . Parts Fried 1 | . . . . . . . . . . . . . . 1 . . . . . . . . . . . . . . . . . . . . . . . Impact Corruptions . | . . . . . . . . . . . . . . . . . . . . . . . . . . . . . . . . . . . . . . Robots Melted . | . . . . . . . . . . . . . . . . . . . . . . . . . . . . . . . . . . . . . . Combat Hostiles . | . . . . . . . . . . . . . . . . . . . . . . . . . . . . . . . . . . . . . . Parts Melted 9 | . . . . . 7 . . . 1 . . . . . 1 . . . . . . . . . . . . . . . . . . . . . . Heat Transferred 5136 | . . . . . 2849 . . . 148 . . . . . 1739 . . . 250 . . . . . . 150 . . . . . . . . . . . Parts Sabotaged . | . . . . . . . . . . . . . . . . . . . . . . . . . . . . . . . . . . . . . . Parts Stolen . | . . . . . . . . . . . . . . . . . . . . . . . . . . . . . . . . . . . . . . Parts Stripped . | . . . . . . . . . . . . . . . . . . . . . . . . . . . . . . . . . . . . . . Power Chain Reactions . | . . . . . . . . . . . . . . . . . . . . . . . . . . . . . . . . . . . . . . Missiles Intercepted . | . . . . . . . . . . . . . . . . . . . . . . . . . . . . . . . . . . . . . . Alert | -11 -10 -10 -10 -9 -8 -7 -7 -7 -6 -6 -6 -6 -6 -6 -6 -6 -5 -5 -5 -5 -5 -5 -4 -4 -4 -4 -4 -4 -4 -3 -3 -3 -2 -2 -2 -1 -1 ------- Run | Scr Mat Min Exi Min Mat Fac Low Dat Pro Fac Was Fac Ext Cet Arc Hub Fac Was Fac Upp Upp War Pro Fac Was Fac Upp Upp Zhi Pro Res Tes Res Qua Sec Acc Com Peak Influence 1192 | . 294 300 . 147 332 271 . . . 83 5 676 1192 976 463 321 615 187 942 . . . . 197 88 433 . . . . 140 255 530 258 684 493 1145 Initial 474 | . . 90 . . 13 136 . . . . 5 3 100 474 310 58 154 127 116 . . . . . 43 61 . . . . . . 143 246 144 144 315 Average 192 | . 158 141 . 42 135 75 . . . 22 5 242 691 675 335 137 235 150 243 . . . . 62 63 164 . . . . 22 65 157 123 372 283 855 Maximum Alert Level 4 | . 1 1 . . 1 1 . . . . . 2 4 3 2 1 2 . 3 . . . . . . 2 . . . . . 1 2 1 2 2 4 Low Security (%) 64 | 100 54 75 . 100 66 92 . . . 100 100 46 6 . 10 85 48 100 49 . . . . 100 100 75 . . . . 100 99 66 69 16 33 . Level 1 24 | . 45 24 . . 33 7 . . . . . 28 6 . 53 14 38 . 41 . . . . . . 23 . . . . . . 20 30 46 54 13 Level 2 5 | . . . . . . . . . . . . 25 24 65 35 . 13 . . . . . . . . 1 . . . . . . 12 . 36 11 14 Level 3 5 | . . . . . . . . . . . . . 60 34 . . . . 8 . . . . . . . . . . . . . . . . . 51 Level 4 . | . . . . . . . . . . . . . 1 . . . . . . . . . . . . . . . . . . . . . . . 21 Level 5 . | . . . . . . . . . . . . . . . . . . . . . . . . . . . . . . . . . . . . . . High Security . | . . . . . . . . . . . . . . . . . . . . . . . . . . . . . . . . . . . . . . Max Security . | . . . . . . . . . . . . . . . . . . . . . . . . . . . . . . . . . . . . . . Squads Dispatched 86 | . 5 . . . 4 8 . . . 6 . 5 3 . . 9 6 . 11 . . . . 2 . 6 . . . . 2 7 1 1 6 1 3 Investigation 40 | . 2 . . . 1 6 . . . 3 . 3 1 . . 7 2 . 4 . . . . 1 . 4 . . . . . 3 . . 1 1 1 Extermination 12 | . . . . . . 2 . . . 1 . . . . . . . . 2 . . . . 1 . 2 . . . . . 2 . . 1 . 1 Reinforcement 31 | . 3 . . . 3 . . . . 2 . 2 2 . . 2 3 . 3 . . . . . . . . . . . 2 2 1 1 4 . 1 Assault 2 | . . . . . . . . . . . . . . . . . . . 2 . . . . . . . . . . . . . . . . . . Garrison 1 | . . . . . . . . . . . . . . . . . 1 . . . . . . . . . . . . . . . . . . . . Intercept . | . . . . . . . . . . . . . . . . . . . . . . . . . . . . . . . . . . . . . . Searches Triggered 1 | . . . . . . . . . . . . . . . . . . . . . . . . . . . . . . . . . . . 1 . . Construction Impeded 2 | . . . . . 1 . . . . . . . 1 . . . . . . . . . . . . . . . . . . . . . . . . Haulers Reinforced 3 | . . . . . . . . . . 1 . . . . . . . . 1 . . . . . . . . . . . . . 1 . . . . Active Scanning Responses . | . . . . . . . . . . . . . . . . . . . . . . . . . . . . . . . . . . . . . . Cargo Convoy Interrupts 4 | . . . . . . 1 . . . . . . . . . . 1 . 1 . . . . . . 1 . . . . . . . . . . . Stealth | -11 -10 -10 -10 -9 -8 -7 -7 -7 -6 -6 -6 -6 -6 -6 -6 -6 -5 -5 -5 -5 -5 -5 -4 -4 -4 -4 -4 -4 -4 -3 -3 -3 -2 -2 -2 -1 -1 --------- Run | Scr Mat Min Exi Min Mat Fac Low Dat Pro Fac Was Fac Ext Cet Arc Hub Fac Was Fac Upp Upp War Pro Fac Was Fac Upp Upp Zhi Pro Res Tes Res Qua Sec Acc Com Distress Signals 38 | . 1 . . 1 6 1 . . . . . 2 1 2 . . 3 . 2 . . 1 . . . 4 . . . . 4 1 4 1 1 2 1 Communications Jammed 61 | . . . . . . . . . . . . . . . . . . . . . . . . . . . . . . . . 14 1 . 2 19 25 Distress Signals 61 | . . . . . . . . . . . . . . . . . . . . . . . . . . . . . . . . 14 1 . 2 19 25 Times Spotted 656 | . 32 13 . 3 61 10 . . 4 5 . 10 20 16 98 16 38 6 54 2 4 5 . 10 5 46 7 . . 1 10 26 26 15 42 35 36 Peak Tracking Total 22 | . 3 3 . 3 8 3 . . 4 4 . 6 5 9 1 10 12 6 16 6 4 10 . 5 5 22 5 . . 1 5 10 11 5 12 15 8 Tactical Retreats 75 | . 1 2 . . 2 2 . . . 2 . 1 1 1 . 1 7 . 15 1 . 1 . 2 . 10 1 . . . 2 4 5 3 5 4 2 Traps | -11 -10 -10 -10 -9 -8 -7 -7 -7 -6 -6 -6 -6 -6 -6 -6 -6 -5 -5 -5 -5 -5 -5 -4 -4 -4 -4 -4 -4 -4 -3 -3 -3 -2 -2 -2 -1 -1 ------- Run | Scr Mat Min Exi Min Mat Fac Low Dat Pro Fac Was Fac Ext Cet Arc Hub Fac Was Fac Upp Upp War Pro Fac Was Fac Upp Upp Zhi Pro Res Tes Res Qua Sec Acc Com Traps Triggered 23 | . 2 1 . . . . . . . 3 . . 4 . . 1 2 . 4 . . . . 2 . 1 . . . . . . 2 . 1 . . Indirectly . | . . . . . . . . . . . . . . . . . . . . . . . . . . . . . . . . . . . . . . Trap Hack Attempts 44 | . . . . . 29 8 . . . . . . . . . . . . 7 . . . . . . . . . . . . . . . . . . Triggered . | . . . . . . . . . . . . . . . . . . . . . . . . . . . . . . . . . . . . . . Disarmed 14 | . . . . . 1 . . . . . . 6 . . . . . . 1 . . . . . . . . . . . . . . 6 . . . Reprogrammed 42 | . . . . . 9 2 . . . . . . . . . . . . 15 . . . . . . . . . . . . 10 . . 6 . . Reused 23 | . . . . . . 2 . . . . . . . . . . 2 . 7 . . . . . . . . . . . . 7 . . 5 . . Traps Extracted 20 | . . . . . 9 3 . . . . . . . . . . . . 8 . . . . . . . . . . . . . . . . . . Installed 12 | . . . . . . 3 . . . . . . . . . . 3 . 6 . . . . . . . . . . . . . . . . . . Triggered 38 | . . . . . . 2 . . . . . . . . . . 2 . 8 . . 14 . . . . . . . . . 7 . . 5 . . Most Traps Carried 6 | . . . . . 6 3 3 3 3 3 3 3 3 3 3 3 3 . 6 2 2 2 2 2 2 . . . . . . . . . . . . Machines | -11 -10 -10 -10 -9 -8 -7 -7 -7 -6 -6 -6 -6 -6 -6 -6 -6 -5 -5 -5 -5 -5 -5 -4 -4 -4 -4 -4 -4 -4 -3 -3 -3 -2 -2 -2 -1 -1 ---------- Run | Scr Mat Min Exi Min Mat Fac Low Dat Pro Fac Was Fac Ext Cet Arc Hub Fac Was Fac Upp Upp War Pro Fac Was Fac Upp Upp Zhi Pro Res Tes Res Qua Sec Acc Com Machines Disabled 62 | . 1 . . . 2 . . . . . . . 6 . 2 . 2 . 27 1 . . . 1 . 3 . . . . . 4 1 5 5 2 . Max in Single Turn 14 | . 1 . . . 1 . . . . . . . 1 . . . 1 . 14 1 . . . 1 . 2 . . . . . 1 1 1 1 2 . Garrison Access 8 | . . . . . 1 1 . . . . . . . . . . 1 . 1 . . . . 1 . 1 . . . . . 1 1 . . . . Network Hub 4 | . . . . . . . . . . . . . . . . 4 . . . . . . . . . . . . . . . . . . . . . Machines Sabotaged 3 | . . . . . . . . . . . . . . . . 3 . . . . . . . . . . . . . . . . . . . . . Garrisons Compromised . | . . . . . . . . . . . . . . . . . . . . . . . . . . . . . . . . . . . . . . Overloaded Fab Kills . | . . . . . . . . . . . . . . . . . . . . . . . . . . . . . . . . . . . . . . Hacking | -11 -10 -10 -10 -9 -8 -7 -7 -7 -6 -6 -6 -6 -6 -6 -6 -6 -5 -5 -5 -5 -5 -5 -4 -4 -4 -4 -4 -4 -4 -3 -3 -3 -2 -2 -2 -1 -1 --------- Run | Scr Mat Min Exi Min Mat Fac Low Dat Pro Fac Was Fac Ext Cet Arc Hub Fac Was Fac Upp Upp War Pro Fac Was Fac Upp Upp Zhi Pro Res Tes Res Qua Sec Acc Com Machines Accessed 199 | . 9 1 2 . 16 23 . 4 . 13 . 7 6 1 . 8 12 . 17 1 . 3 . 11 . 19 . . 4 . 4 15 1 6 9 3 4 Terminals 102 | . 6 . . . 9 12 . . . 6 . 2 5 1 . 6 5 . 9 . . . . 3 . 9 . . . . 1 9 1 4 8 2 4 Fabricators 25 | . . . . . . 6 . . . 2 . 2 . . . . 1 . 3 . . . . 2 . 5 . . . . 1 2 . . . 1 . Repair Stations 18 | . 1 . . . 2 1 . . . 2 . . . . . . 2 . 1 . . . . 2 . 2 . . . . 1 2 . 1 1 . . Recycling Units 16 | . 2 . . . 2 2 . . . 2 . 1 1 . . . 1 . 1 . . . . 2 . 2 . . . . . . . . . . . Scanalyzers 10 | . . . . . 2 1 . . . 1 . 1 . . . . 1 . 1 . . . . . . . . . . . 1 1 . 1 . . . Garrison Access 13 | . . . . . 1 1 . . . . . 1 . . . 2 2 . 2 . . . . 2 . 1 . . . . . 1 . . . . . Total Hacks 783 | . 20 1 2 . 47 70 . 29 . 55 . 26 15 3 . 15 69 . 97 1 . 8 . 47 . 69 . . 17 . 23 75 3 26 43 12 10 Successful 609 | . 9 1 2 . 29 57 . 29 . 43 . 21 8 1 . 10 51 . 75 1 . 8 . 44 . 68 . . 17 . 21 56 3 18 24 8 5 Failed 172 | . 11 . . . 18 13 . . . 12 . 5 7 2 . 5 18 . 22 . . . . 2 . 1 . . . . 2 18 . 8 19 4 5 Catastrophic 17 | . . . . . . . . . . 1 . . 2 . . . 2 . 4 . . . . . . . . . . . . . . 1 4 2 1 Database Lockouts 2 | . . . . . . . . . . . . . . . . . . . . . . . . 1 . . . . . . . 1 . . . . . Manual 427 | . 10 . 1 . 22 37 . . . 36 . 13 6 1 . 15 39 . 65 . . 1 . 28 . 42 . . . . 9 46 2 16 28 9 1 Terminals 483 | . 14 . . . 28 44 . . . 37 . 13 12 3 . 11 40 . 65 . . . . 23 . 38 . . . . 15 58 3 22 38 9 10 Fabricators 94 | . . . . . . 18 . . . 4 . 5 . . . . 4 . 18 . . . . 11 . 17 . . . . 5 9 . . . 3 . Repair Stations 49 | . 4 . . . 6 2 . . . 6 . . . . . . 4 . 2 . . . . 4 . 6 . . . . 2 6 . 2 5 . . Recycling Units 40 | . 2 . . . 6 3 . . . 5 . 3 3 . . . 2 . 3 . . . . 6 . 7 . . . . . . . . . . . Scanalyzers 41 | . . . . . 6 2 . . . 3 . 4 . . . . 16 . 6 . . . . . . . . . . . 1 1 . 2 . . . Garrison Access 18 | . . . . . 1 1 . . . . . 1 . . . 4 3 . 3 . . . . 3 . 1 . . . . . 1 . . . . . Terminal Hacks 288 | . 5 1 2 . 8 25 . 29 . 19 . 9 6 1 . 1 17 . 32 1 . 8 . 11 . 17 . . 17 . 10 31 2 12 15 4 5 Record 17 | . . . 1 . . . . 11 . . . . . . . . . . . . . . . . . . . . 5 . . . . . . . . Part Schematic 40 | . . . . . . 2 . 10 . 3 . . . . . . 2 . 6 . . . . 2 . 3 . . 4 . 1 4 . . 3 . . Robot Schematic 5 | . . . . . . . . 5 . . . . . . . . . . . . . . . . . . . . . . . . . . . . . Robot Analysis 12 | . 2 . . . 1 1 . . . . . . . . . . 1 . . . . . . . . 1 . . 4 . . . . 1 . . 1 Prototype ID Bank 43 | . 2 . . . . 3 . 3 . 3 . . . . . . 1 . 2 . . 6 . 1 . 4 . . 4 . 3 6 . 5 . . . Open Door 9 | . . 1 . . . . . . . . . . 2 1 . . . . . 1 . 2 . . . . . . . . . 1 . . . . 1 Level Access Points 6 | . . . . . . . . . . . . . . . . 1 1 . . . . . . . . . . . . . . 1 . . 2 1 . Branch Access Points 10 | . . . . . . 1 . . . 1 . 1 . . . . 1 . 1 . . . . 1 . 1 . . . . 1 . 1 . . 1 . Machine Index 3 | . . . . . . . . . . . . . . . . . . . . . . . . 1 . 1 . . . . . . . . . . 1 Terminal Index 9 | . . . . . . 1 . . . 1 . 1 . . . . 1 . 1 . . . . . . . . . . . 1 1 . . 1 . 1 Fabricator Index 6 | . . . . . . . . . . 1 . 1 . . . . 1 . 1 . . . . . . . . . . . 1 1 . . . . . Repair Station Index 2 | . . . . . . . . . . 1 . . . . . . . . 1 . . . . . . . . . . . . . . . . . . Scanalyzer Index 1 | . . . . . . 1 . . . . . . . . . . . . . . . . . . . . . . . . . . . . . . . Alert Level 20 | . . . . . 3 3 . . . 1 . 2 . . . . 3 . 5 . . . . . . . . . . . . 2 . . . 1 . Unreport Threat 30 | . . . . . 3 1 . . . . . 2 3 . . . 3 . 2 . . . . . . 1 . . . . 2 4 1 3 4 1 . Locate Traps 13 | . . . . . . 3 . . . 1 . 1 . . . . . . 3 . . . . 1 . . . . . . . 2 . 1 1 . . Disarm Traps 2 | . . . . . . . . . . . . 1 . . . . . . . . . . . . . . . . . . . . . 1 . . . Reprogram Traps 9 | . . . . . 1 . . . . . . . . . . . . . 5 . . . . . . . . . . . . 2 . . 1 . . Patrol Status 5 | . . . . . . 1 . . . . . . . . . . . . . . . . . 1 . 1 . . . . . 1 . . 1 . . Recall Investigation 6 | . . . . . . 3 . . . 1 . . . . . . . . . . . . . . . 1 . . . . . 1 . . . . . Recall Extermination 9 | . . . . . . 2 . . . 1 . . . . . . . . 2 . . . . 1 . . . . . . . 2 . . 1 . . Recall Reinforcements 7 | . . . . . . . . . . 2 . . 1 . . . 2 . . . . . . . . . . . . . . 2 . . . . . Hauler Manifests 3 | . 1 . . . . . . . . . . . . . . . . . . . . . . 1 . . . . . . . 1 . . . . . Zone Layout 19 | . . . . . . 3 . . . 3 . . . . . . 1 . 3 . . . . 2 . 4 . . . . 1 . . 1 1 . . EX-Prototype ID Bank 1 | . . . 1 . . . . . . . . . . . . . . . . . . . . . . . . . . . . . . . . . . Disengage Seal 1 | . . . . . . . . . . . . . . . . . . . . . . . . . . . . . . . . . . . . . 1 Fabricator Hacks 55 | . . . . . . 13 . . . 4 . 2 . . . . 1 . 11 . . . . 6 . 8 . . . . 4 4 . . . 2 . Network Status 3 | . . . . . . 1 . . . . . . . . . . . . . . . . . . . 2 . . . . . . . . . . . Load Schematic 32 | . . . . . . 8 . . . 2 . 2 . . . . 1 . 7 . . . . 3 . 4 . . . . 2 2 . . . 1 . Build 20 | . . . . . . 4 . . . 2 . . . . . . . . 4 . . . . 3 . 2 . . . . 2 2 . . . 1 . Repair Station Hacks 45 | . 2 . . . 5 2 . . . 6 . . . . . . 4 . 2 . . . . 4 . 6 . . . . 2 6 . 2 4 . . Scan Component 23 | . 1 . . . 3 1 . . . 3 . . . . . . 2 . 1 . . . . 2 . 3 . . . . 1 3 . 1 2 . . Repair 22 | . 1 . . . 2 1 . . . 3 . . . . . . 2 . 1 . . . . 2 . 3 . . . . 1 3 . 1 2 . . Recycling Unit Hacks 10 | . . . . . 2 1 . . . 1 . . 1 . . . . . 1 . . . . 2 . 2 . . . . . . . . . . . Retrieve Components 10 | . . . . . 2 1 . . . 1 . . 1 . . . . . 1 . . . . 2 . 2 . . . . . . . . . . . Scanalyzer 38 | . . . . . 5 2 . . . 3 . 4 . . . . 15 . 5 . . . . . . . . . . . 1 1 . 2 . . . Insert Component 20 | . . . . . 2 1 . . . 2 . 2 . . . . 6 . 3 . . . . . . . . . . . 1 1 . 2 . . . Analyze 18 | . . . . . 3 1 . . . 1 . 2 . . . . 9 . 2 . . . . . . . . . . . . . . . . . . Garrison Access Hacks 7 | . . . . . 1 1 . . . . . . . . . . 1 . 1 . . . . 1 . 1 . . . . . 1 . . . . . Seal Access 7 | . . . . . 1 1 . . . . . . . . . . 1 . 1 . . . . 1 . 1 . . . . . 1 . . . . . Unauthorized Hacks 166 | . 2 . . . 8 13 . . . 10 . 6 1 . . 9 13 . 23 . . . . 20 . 34 . . . . 4 13 1 2 5 2 . Terminals 98 | . . . . . 7 7 . . . 6 . 1 . . . 8 8 . 12 . . . . 9 . 20 . . . . 3 8 1 2 5 1 . Track 10 | . . . . . . . . . . . . . . . . . . . 2 . . . . 2 . 4 . . . . 1 1 . . . . . Assimilate 17 | . . . . . . 1 . . . . . 1 . . . . 2 . 1 . . . . 2 . 2 . . . . 1 2 1 2 1 1 . Botnet 43 | . . . . . 7 5 . . . 5 . . . . . . 4 . 5 . . . . 2 . 8 . . . . 1 3 . . 3 . . Detonate 4 | . . . . . . . . . . . . . . . . 2 . . 1 . . . . . . 1 . . . . . . . . . . . Disrupt 8 | . . . . . . . . . . . . . . . . . 1 . 2 . . . . 2 . 1 . . . . . 1 . . 1 . . Operators 10 | . . . . . . 1 . . . 1 . . . . . . 1 . 1 . . . . 1 . 4 . . . . . 1 . . . . . Sabotage 6 | . . . . . . . . . . . . . . . . 6 . . . . . . . . . . . . . . . . . . . . . Fabricators 36 | . . . . . . 5 . . . . . 2 . . . . 1 . 7 . . . . 5 . 9 . . . . 1 5 . . . 1 . Prioritize 11 | . . . . . . 1 . . . . . . . . . . . . 2 . . . . 2 . 2 . . . . 1 2 . . . 1 . Liberate 1 | . . . . . . . . . . . . . . . . . . . 1 . . . . . . . . . . . . . . . . . . Fabnet 6 | . . . . . . . . . . . . . . . . . . . . . . . . 1 . 3 . . . . . 2 . . . . . Haulers 4 | . . . . . . . . . . . . . . . . . . . 1 . . . . 1 . 1 . . . . . 1 . . . . . Recompile 14 | . . . . . . 4 . . . . . 2 . . . . 1 . 3 . . . . 1 . 3 . . . . . . . . . . . Repair Stations . | . . . . . . . . . . . . . . . . . . . . . . . . . . . . . . . . . . . . . . Recycling Units 24 | . 2 . . . 1 1 . . . 4 . 2 1 . . . 2 . 2 . . . . 4 . 5 . . . . . . . . . . . Reject 12 | . . . . . 1 1 . . . 2 . 1 1 . . . 1 . 1 . . . . 2 . 2 . . . . . . . . . . . Recyclers 1 | . . . . . . . . . . . . . . . . . . . . . . . . . . 1 . . . . . . . . . . . Mask 9 | . . . . . . . . . . 2 . 1 . . . . 1 . 1 . . . . 2 . 2 . . . . . . . . . . . Tunnel 2 | . 2 . . . . . . . . . . . . . . . . . . . . . . . . . . . . . . . . . . . . Scanalyzers . | . . . . . . . . . . . . . . . . . . . . . . . . . . . . . . . . . . . . . . Garrison Access 8 | . . . . . . . . . . . . 1 . . . 1 2 . 2 . . . . 2 . . . . . . . . . . . . . Reprogram 5 | . . . . . . . . . . . . 1 . . . 1 1 . 1 . . . . 1 . . . . . . . . . . . . . Watchers 3 | . . . . . . . . . . . . . . . . . 1 . 1 . . . . 1 . . . . . . . . . . . . . Data Cores Recovered 2 | . . . . . 1 . . . . . . 1 . . . . . . . . . . . . . . . . . . . . . . . . . Used . | . . . . . . . . . . . . . . . . . . . . . . . . . . . . . . . . . . . . . . Hacking Detections 111 | . 7 . . . 14 16 . . . 6 . 6 4 . . 3 9 . 7 . . . . 5 . 9 . . . . . 9 . 4 9 2 1 Full Trace Events 13 | . . . . . 2 2 . . . 3 . . . . . . . . . . . . . . . 1 . . . . . 3 . . 1 1 . Feedback Events 4 | . . . . . 2 . . . . . . . . . . . . . . . . . . . . . . . . . . . . . 2 . . Corruption 2 | . . . . . 1 . . . . . . . . . . . . . . . . . . . . . . . . . . . . . 1 . . Hackware Fried 2 | . . . . . 1 . . . . . . . . . . . . . . . . . . . . . . . . . . . . . 1 . . Feedback Blocked . | . . . . . . . . . . . . . . . . . . . . . . . . . . . . . . . . . . . . . . Robot Schematics Acquired 5 | . . . . . . . . 5 . . . . . . . . . . . . . . . . . . . . . . . . . . . . . Robots Built . | . . . . . . . . . . . . . . . . . . . . . . . . . . . . . . . . . . . . . . Authchips . | . . . . . . . . . . . . . . . . . . . . . . . . . . . . . . . . . . . . . . Time . | . . . . . . . . . . . . . . . . . . . . . . . . . . . . . . . . . . . . . . Total Robot Build Rating . | . . . . . . . . . . . . . . . . . . . . . . . . . . . . . . . . . . . . . . Part Schematics Acquired 51 | . . . . . 1 3 . 10 . 4 . 2 . . . . 6 . 8 . . . . 2 . 3 . . 4 . 1 4 . . 3 . . Parts Built 19 | . . . . . . 4 . . . 2 . . . . . . . . 4 . . . . 2 . 2 . . . . 2 2 . . . 1 . Authchips 10 | . . . . . . 2 . . . . . . . . . . . . 4 . . . . 2 . . . . . . 2 . . . . . . Time 1949 | . . . . . . 293 . . . 101 . . . . . . . . 336 . . . . 419 . 291 . . . . 306 166 . . . 37 . Total Part Build Rating 129 | . . . . . . 20 . . . 7 . . . . . . . . 27 . . . . 14 . 18 . . . . 16 18 . . . 9 . Parts Repaired 21 | . 1 . . . 2 1 . . . 3 . . . . . . 2 . . . . . . 2 . 3 . . . . 1 3 . 1 2 . . Time 1039 | . 26 . . . 134 44 . . . 208 . . . . . . 148 . 56 . . . . 68 . 108 . . . . 31 147 . 29 40 . . Parts Recycled . | . . . . . . . . . . . . . . . . . . . . . . . . . . . . . . . . . . . . . . Recycled Matter . | . . . . . . . . . . . . . . . . . . . . . . . . . . . . . . . . . . . . . . Retrieved Matter . | . . . . . . . . . . . . . . . . . . . . . . . . . . . . . . . . . . . . . . Retrieved Components 33 | . . . . . 12 10 . . . . . . 2 . . . . . 6 . . . . . . 3 . . . . . . . . . . . Parts Scanalyzed 12 | . . . . . 1 1 . . . 1 . 2 . . . . 5 . 2 . . . . . . . . . . . . . . . . . . Part Schematics Acquired 12 | . . . . . 1 1 . . . 1 . 2 . . . . 5 . 2 . . . . . . . . . . . . . . . . . . Parts Damaged 2 | . . . . . . 1 . . . 1 . . . . . . . . . . . . . . . . . . . . . . . . . . . Bothacking | -11 -10 -10 -10 -9 -8 -7 -7 -7 -6 -6 -6 -6 -6 -6 -6 -6 -5 -5 -5 -5 -5 -5 -4 -4 -4 -4 -4 -4 -4 -3 -3 -3 -2 -2 -2 -1 -1 ------------ Run | Scr Mat Min Exi Min Mat Fac Low Dat Pro Fac Was Fac Ext Cet Arc Hub Fac Was Fac Upp Upp War Pro Fac Was Fac Upp Upp Zhi Pro Res Tes Res Qua Sec Acc Com Used RIF Installer . | . . . . . . . . . . . . . . . . . . . . . . . . . . . . . . . . . . . . . . Robots Hacked 21 | . . . 1 . 1 1 . . . . . . . . . . . . 1 . . . . . . . . . . 1 4 2 4 1 3 2 . Non-combat 4 | . . . 1 . 1 1 . . . . . . . . . . . . 1 . . . . . . . . . . . . . . . . . . Combat 17 | . . . . . . . . . . . . . . . . . . . . . . . . . . . . . . 1 4 2 4 1 3 2 . Robot Hacks Applied 4 | . . . 1 . 1 1 . . . . . . . . . . . . 1 . . . . . . . . . . . . . . . . . . parse_system 2 | . . . 1 . 1 . . . . . . . . . . . . . . . . . . . . . . . . . . . . . . . . find_chute 1 | . . . . . . 1 . . . . . . . . . . . . . . . . . . . . . . . . . . . . . . . find_recycling 1 | . . . . . . . . . . . . . . . . . . . 1 . . . . . . . . . . . . . . . . . . Relay Couplers Released 8 | . . . . . . . . . . . . . . . . . . . . . . . . . . . . . . . 3 . 5 . . . . Machine Destruction 2 | . . . . . . . . . . . . . . . . . . . . . . . . . . . . . . . . . 2 . . . . Programmers 6 | . . . . . . . . . . . . . . . . . . . . . . . . . . . . . . . 3 . 3 . . . . Fabnet Peak Effective % 8 | . . . . . . . . . . . . . . . . . . . . . . . . . . . . . . 6 6 6 8 8 8 2 2 Autooverrided 17 | . . . . . . . . . . . . . . . . . . . . . . . . . . . . . . 1 4 2 4 1 3 2 . Robots Rewired 15 | . . . . . . . . . . . . . 13 . . . . . . 2 . . . . . . . . . . . . . . . . . Allies Hacked . | . . . . . . . . . . . . . . . . . . . . . . . . . . . . . . . . . . . . . . Hacks Repelled . | . . . . . . . . . . . . . . . . . . . . . . . . . . . . . . . . . . . . . . Allies | -11 -10 -10 -10 -9 -8 -7 -7 -7 -6 -6 -6 -6 -6 -6 -6 -6 -5 -5 -5 -5 -5 -5 -4 -4 -4 -4 -4 -4 -4 -3 -3 -3 -2 -2 -2 -1 -1 -------- Run | Scr Mat Min Exi Min Mat Fac Low Dat Pro Fac Was Fac Ext Cet Arc Hub Fac Was Fac Upp Upp War Pro Fac Was Fac Upp Upp Zhi Pro Res Tes Res Qua Sec Acc Com Total Allies 93 | . . 1 . . . 1 . 1 . . 20 . 19 5 . 2 2 . 3 2 . . . 2 . 2 . . . 1 5 3 5 2 4 3 10 Largest Group 20 | . . 1 . . . 1 . 1 1 . 20 20 13 13 3 3 . 2 2 2 . . . 2 . 1 . . . 1 2 3 2 1 1 2 9 Highest-Rated Group 803 | . . 31 . . . 10 . 59 59 . 803 803 475 480 274 185 . 86 108 60 . . . 55 . 26 . . . 116 127 155 99 58 69 116 320 Highest-Rated Ally 160 | . . 31 . . . 10 . 59 59 . 50 50 159 159 96 96 . 43 54 30 . . . 45 . 26 . . . 116 82 82 69 58 69 58 160 Total Orders 13 | . . . . . . . . . 1 . . . 2 3 3 . . . 3 . . . . . . . . . . . . . . . . . 1 STAY 5 | . . . . . . . . . 1 . . . 1 . . . . . 2 . . . . . . . . . . . . . . . . . 1 FOLLOW 1 | . . . . . . . . . . . . . . . . . . . 1 . . . . . . . . . . . . . . . . . . RETURN 7 | . . . . . . . . . . . . . 1 3 3 . . . . . . . . . . . . . . . . . . . . . . Ally Attacks 546 | . . 2 . . . . . . . . . 111 173 108 35 15 5 14 7 3 . . . . . . . . . . 9 4 16 1 5 5 33 Total Damage 17068 | . . 42 . . . . . . . . . 3068 6427 3522 890 355 97 445 235 114 . . . . . . . . . . 294 92 399 45 213 92 738 Kills 101 | . . 1 . . . . . . . . . 20 47 17 4 2 . . 4 1 . . . . . . . . . . 1 . 1 . 1 . 2 Allies Corrupted 1 | . . . . . . . . . . . . . . . . 1 . . . . . . . . . . . . . . . . . . . . . Allies Melted 4 | . . . . . . . . . . . . . . . . . . . . . . . . . . . . . . . . 1 2 . 1 . . Field Lobotomies 3 | . . . . . . . . 1 . . . . . . . . . . . . . . . . . . . . . . . . . . . . 2 Intel | -11 -10 -10 -10 -9 -8 -7 -7 -7 -6 -6 -6 -6 -6 -6 -6 -6 -5 -5 -5 -5 -5 -5 -4 -4 -4 -4 -4 -4 -4 -3 -3 -3 -2 -2 -2 -1 -1 ------- Run | Scr Mat Min Exi Min Mat Fac Low Dat Pro Fac Was Fac Ext Cet Arc Hub Fac Was Fac Upp Upp War Pro Fac Was Fac Upp Upp Zhi Pro Res Tes Res Qua Sec Acc Com Robot Analysis Total 12 | . 2 . . . 1 1 . . . . . . . . . . 1 . . . . . . . . 1 . . 4 . . . . 1 . . 1 Derelict Logs Recovered 10 | . . 2 . 1 . . . . 1 . . . . . . . . . . 2 2 . 2 . . . . . . . . . . . . . . Drone Launches 10 | . . . . . . . . . . . . . 2 4 3 . 1 . . . . . . . . . . . . . . . . . . . . Drone Recoveries 8 | . . . . . . . . . . . . . 2 3 3 . . . . . . . . . . . . . . . . . . . . . . Exploration | -11 -10 -10 -10 -9 -8 -7 -7 -7 -6 -6 -6 -6 -6 -6 -6 -6 -5 -5 -5 -5 -5 -5 -4 -4 -4 -4 -4 -4 -4 -3 -3 -3 -2 -2 -2 -1 -1 ------------- Run | Scr Mat Min Exi Min Mat Fac Low Dat Pro Fac Was Fac Ext Cet Arc Hub Fac Was Fac Upp Upp War Pro Fac Was Fac Upp Upp Zhi Pro Res Tes Res Qua Sec Acc Com Turns Passed 26668 | 94 2293 1015 613 1486 5815 1893 6 51 174 854 111 484 1089 424 893 249 939 45 1872 289 122 557 133 784 22 706 120 76 46 49 467 1060 445 282 349 187 574 Spaces Moved 29864 | 52 784 380 252 356 1964 3567 9 96 457 1427 260 649 1001 204 1001 462 1295 133 2857 505 306 1034 402 1211 73 1217 426 270 133 173 462 1387 1521 917 1092 628 901 Core 10 | 3 . . . . 1 . . . . . . . 3 . . . 3 . . . . . . . . . . . . . . . . . . . . Treads 3782 | 49 784 380 252 356 1961 . . . . . . . . . . . . . . . . . . . . . . . . . . . . . . . . Legs . | . . . . . . . . . . . . . . . . . . . . . . . . . . . . . . . . . . . . . . Wheels 2 | . . . . . 2 . . . . . . . . . . . . . . . . . . . . . . . . . . . . . . . . Hover . | . . . . . . . . . . . . . . . . . . . . . . . . . . . . . . . . . . . . . . Flight 26047 | . . . . . . 3567 9 96 457 1427 260 649 998 204 1001 462 1292 133 2857 505 306 1034 402 1211 73 1217 426 270 133 173 462 1387 1521 917 1092 609 897 Fastest Speed 14 | 50 160 240 240 240 175 24 30 30 24 28 29 29 29 28 28 25 25 29 28 37 34 28 28 28 28 28 28 28 28 28 28 17 14 14 15 22 22 Average Speed 56 | 153 234 240 240 283 254 31 30 30 29 28 29 29 30 34 30 30 37 29 35 37 36 33 28 28 28 28 28 28 28 28 28 23 17 16 17 23 22 Slowest Speed 1450 | 160 240 240 240 320 1450 594 30 30 30 29 29 29 159 159 158 95 162 29 117 37 37 37 28 91 28 94 28 28 28 28 91 28 99 21 97 24 103 Overloaded Moves 193 | . . . . . . 12 . . 11 . . . . . . 97 8 . 42 . 23 . . . . . . . . . . . . . . . . Propulsion Burnouts . | . . . . . . . . . . . . . . . . . . . . . . . . . . . . . . . . . . . . . . Robots Hopped 180 | . . . . . . 17 . . . 17 . 4 9 . 12 6 4 . 14 2 2 1 . 2 . 14 1 . . . 4 10 24 4 13 13 7 Cave-ins Triggered . | . . . . . . . . . . . . . . . . . . . . . . . . . . . . . . . . . . . . . . Spacefolds 9 | . . . . . . . . . . . . . . . . . . . . . . . . . . . . . . . . . . . . 7 2 Exploration Rate (%) 55 | 5 99 66 60 71 91 57 2 75 73 27 89 14 83 68 96 45 30 91 46 56 53 92 55 22 83 35 65 43 60 44 16 81 41 79 43 25 32 Regions Visited 37 Branch Regions 22 Pre-discovered Areas 11 | . 2 . 1 1 . . . 1 1 . . . . . . . . . . . . . 2 . . . . . 3 . . . . . . . . Known Exits Taken 25 | . . . . . . 1 1 1 1 . . 1 1 1 1 1 . . 1 1 1 1 1 . . 1 1 1 1 1 1 1 1 1 1 1 . Unknown Exits Taken 6 | 1 1 1 1 1 1 . . . . . . . . . . . . . . . . . . . . . . . . . . . . . . . . Scrap Searched 13 | . . . . 1 . . . . 4 . . . . . . . . . . 1 1 . 1 . . . 2 3 . . . . . . . . . Spaces Dug 263 | . . . . 19 . 39 . . 1 17 . 8 . . . 4 21 . 29 . . . . 28 . 21 . . . . 8 21 25 2 4 4 12 Terrain Destroyed 775 | . . . . 30 8 39 . . 1 17 . 8 . 116 . 4 81 . 78 109 . . . 37 . 29 . . . . 8 23 31 2 20 26 108 Melee 230 | . . . . . . 39 . . 1 17 . 8 . . . 4 21 . 29 . . . . 17 . 21 . . . . 8 18 25 2 4 4 12 Projectile 6 | . . . . 1 . . . . . . . . . . . . . . . . . . . . . . . . . . . 5 . . . . . AOE 539 | . . . . 29 8 . . . . . . . . 116 . . 60 . 49 109 . . . 20 . 8 . . . . . . 6 . 16 22 96 Terrain Rammed . | . . . . . . . . . . . . . . . . . . . . . . . . . . . . . . . . . . . . . . Walls Destroyed . | . . . . . . . . . . . . . . . . . . . . . . . . . . . . . . . . . . . . . . Machines Disabled . | . . . . . . . . . . . . . . . . . . . . . . . . . . . . . . . . . . . . . . Actions | -11 -10 -10 -10 -9 -8 -7 -7 -7 -6 -6 -6 -6 -6 -6 -6 -6 -5 -5 -5 -5 -5 -5 -4 -4 -4 -4 -4 -4 -4 -3 -3 -3 -2 -2 -2 -1 -1 --------- Run | Scr Mat Min Exi Min Mat Fac Low Dat Pro Fac Was Fac Ext Cet Arc Hub Fac Was Fac Upp Upp War Pro Fac Was Fac Upp Upp Zhi Pro Res Tes Res Qua Sec Acc Com Total 37963 | 64 1102 432 261 819 2555 4199 11 115 482 1806 294 923 1749 554 1338 546 1664 139 3630 588 312 1245 421 1613 74 1512 424 269 140 172 767 2048 1611 1031 1213 631 1209 Wait 6302 | . 184 13 . 447 294 471 3 15 7 346 29 259 615 308 198 74 215 5 628 66 9 190 20 328 . 246 . . . . 287 586 56 87 95 3 218 Move 29489 | 51 783 379 251 355 1963 3533 8 95 456 1397 259 640 988 203 976 449 1287 132 2830 500 301 1031 401 1207 72 1190 423 269 132 172 454 1367 1485 908 1068 589 885 Hop 149 | . . . . . . 16 . . . 13 . 4 3 . 12 6 4 . 13 2 2 1 . 2 . 12 1 . . . 3 9 11 4 11 13 7 Pick Up 197 | 7 18 5 3 3 26 19 . . 2 2 6 5 3 6 5 . 26 1 16 . . 3 . 8 1 8 . . 1 . 1 4 6 5 4 . 3 Fast Attach 184 | 5 8 . . . 23 9 . 1 4 3 . . 1 5 8 5 15 . 9 1 . 9 . 15 . 5 . . 4 . 4 18 4 7 7 6 8 Attach 105 | 1 2 2 . . 10 14 . 1 2 2 . . 2 7 3 3 15 . 17 1 . 1 . 3 . 2 . . . . 2 1 2 . 3 6 3 Detach 37 | . 3 . . . 2 1 . 1 . 1 . . 2 6 2 1 9 . 2 . . . . 1 . . . . . . . . . 1 2 . 3 Swap 119 | . 10 1 3 7 19 17 . . . 2 . 2 . 2 . . 4 . 27 1 . 3 . 3 . 1 . . . . . 4 7 . 4 1 1 Drop 254 | . 8 4 3 1 29 42 . 1 5 2 . 4 4 10 13 1 25 1 20 1 . 7 . 14 1 7 . . 3 . 1 18 2 10 3 7 7 Fire 458 | . 81 26 . 5 148 . . 1 4 . . . . 6 112 . 18 . 8 12 . . . 4 . . . . . . . 7 2 . 7 2 15 Melee 440 | . . . 1 . 2 66 . . 2 22 . 9 13 1 9 7 43 . 47 . . . . 21 . 31 . . . . 15 34 36 9 9 4 59 Ram . | . . . . . . . . . . . . . . . . . . . . . . . . . . . . . . . . . . . . . . Kick . | . . . . . . . . . . . . . . . . . . . . . . . . . . . . . . . . . . . . . . Crush 18 | . 5 2 . 1 10 . . . . . . . . . . . . . . . . . . . . . . . . . . . . . . . . Escape Stasis 105 | . . . . . . . . . . 16 . . 72 . . . . . . . . . . 7 . 10 . . . . . . . . . . . Rewire 50 | . . . . . . . . . . . . . 46 . . . . . . 4 . . . . . . . . . . . . . . . . . Trap 56 | . . . . . 29 11 . . . . . . . . . . 3 . 13 . . . . . . . . . . . . . . . . . . Miscellaneous . | . . . . . . . . . . . . . . . . . . . . . . . . . . . . . . . . . . . . . . Route ------- -11/Scrapyard -10/Materials (discovered 4 exits: [*Mat x3] / *Min) -10/Mines (discovered 3 exits: [*Mat x2] / *Exi) -10/Exiles -9/Mines -8/Materials (discovered 2 exits: *Fac x2) -7/Factory (discovered 4 exits: *Sto x2 / *Low x2) -7/Lower Caves -7/Data Miner -6/Proximity Caves -6/Factory (discovered 4 exits: Low x2 / Ext x2) -6/Waste -6/Factory (discovered 5 exits: *Fac / Low x2 / *Ext x2) -6/Extension (discovered 2 exits: *Fac / *Cet) -6/Cetus (discovered 2 exits: *Fac / *Arc) -6/Archives (discovered 3 exits: *Fac / *Hub x2) -6/Hub_04(d) (discovered 4 exits: *Fac x4) -5/Factory (discovered 6 exits: Fac x4 / Upp x2) -5/Waste -5/Factory (discovered 3 exits: *Fac / *Upp x2) -5/Upper Caves -5/Upper Caves -5/Warlord -4/Proximity Caves -4/Factory (discovered 4 exits: *Res x2 / *Upp x2) -4/Waste -4/Factory (discovered 3 exits: *Res / *Upp x2) -4/Upper Caves -4/Upper Caves -4/Zhirov -3/Proximity Caves -3/Research (discovered 3 exits: Arm / *Tes x2) -3/Testing -2/Research (discovered 4 exits: *Acc x2 / *Qua x2) -2/Quarantine -2/Section 7 -1/Access (discovered 2 exits: Sur / *Com) -1/Command History --------- Turn | Location | Event 8 | -11/Scrapyard | Discovered new exit (range 15) 95 | -11/Scrapyard | Entered Materials 308 | -10/Materials | Build established: Mutant 584 | -10/Materials | Discovered new exit (range 14) 826 | -10/Materials | Discovered new exit (range 4) 1530 | -10/Materials | Discovered new exit (range 12) 1707 | -10/Materials | Discovered new exit (range 14) 2150 | -10/Materials | Repaired Lgt. Treads 2388 | -10/Materials | Entered Mines 2408 | -10/Mines | Discovered new exit (range 10) 2555 | -10/Mines | Learned Materials interactive machine intel 2627 | -10/Mines | Core integrity fell below 50% 2669 | -10/Mines | Found a hidden stash of uninstalled traps 2778 | -10/Mines | Received a Mining Laser from a helpful Derelict 2888 | -10/Mines | Found a damaged Exp. Sensor Array with a note attached 2893 | -10/Mines | Found Prototype Device 2954 | -10/Mines | Discovered new exit (range 9) 3049 | -10/Mines | Learned Materials garrison access intel 3165 | -10/Mines | Met a Derelict who couldn't figure out how to use a Trap Extractor 3175 | -10/Mines | Core integrity fell below 20% 3394 | -10/Mines | Deemed a non-threat by the Exiles lab entrance 3394 | -10/Mines | Discovered new exit (range 5) 3403 | -10/Mines | Entered Exiles 3463 | -10/Exiles | Met 8R-AWN 3502 | -10/Exiles | Met EX-HEX 3598 | -10/Exiles | Met EX-DEC 3607 | -10/Exiles | Learned location of Zion (-6) 3651 | -10/Exiles | Met EX-BIN 3687 | -10/Exiles | Aligned with FarCom system 3689 | -10/Exiles | Given EX-Vault access code 3744 | -10/Exiles | Opened EX-Vault 3763 | -10/Exiles | Found Modified TNC 3772 | -10/Exiles | Found Superbattery 3778 | -10/Exiles | Found Field Lobotomy Kit 3827 | -10/Exiles | Warned to stay clear of 0b10 Research branches 3849 | -10/Exiles | Exiles lab attacked by MAIN.C 3994 | -10/Exiles | Discovered new exit (range 10) 4016 | -10/Exiles | Stole three prototypes: Superbattery, Modified TNC, Field Lobotomy Kit 4016 | -10/Exiles | Entered Mines 5059 | -9/Mines | Learned location of Recycling (-7) 5457 | -9/Mines | Discovered new exit (range 15) 5502 | -9/Mines | Entered Materials 5502 | -8/Materials | Evolved 4 slots: Propulsion x1, Utility x3 5503 | -8/Materials | Loaded intel: 18 interactive machine locations 5504 | -8/Materials | Loaded intel: 1 garrison access location 5892 | -8/Materials | Lost 10 parts (1p3n2u4w) 6186 | -8/Materials | Build established: Scavenger-Mutant 6596 | -8/Materials | Discovered new exit (range 3) 6666 | -8/Materials | Repaired Lgt. Treads 6827 | -8/Materials | Build established: Mutant 6898 | -8/Materials | Discovered new exit (range 15) 8701 | -8/Materials | Core integrity fell below 50% 9827 | -8/Materials | Identified Exp. Sensor Array 9934 | -8/Materials | Hacking Suite fried by hacking feedback 10324 | -8/Materials | Repaired Exp. Sensor Array? 10521 | -8/Materials | Build established: Hacker-Mutant 11317 | -8/Materials | Entered Factory 11317 | -7/Factory | Evolved 2 slots: Utility x2 11319 | -7/Factory | FarCom data flow suspended 11598 | -7/Factory | Discovered new exit (range 6) 11600 | -7/Factory | Identified exit to Storage 11603 | -7/Factory | Identified exit to Lower Caves 11617 | -7/Factory | Build established: Scavenger-Scout 11836 | -7/Factory | Fabricated Cld. VTOL Module (x1) 11898 | -7/Factory | Fabricated Adv. Hacking Suite (x1) 11983 | -7/Factory | Repaired Broken Cld. VTOL Module 12156 | -7/Factory | Build established: Hacker-Scout 12188 | -7/Factory | Fabricated Adv. Hacking Suite (x1) 12332 | -7/Factory | Fabricated Cld. VTOL Module? 12739 | -7/Factory | Cargo convoy interrupted 12794 | -7/Factory | Found Prototype Hackware 12794 | -7/Factory | Identified Exp. Hacking Suite 13210 | -7/Factory | Entered Lower Caves 13211 | -7/Lower Caves | A Derelict revealed a hidden shortcut to meet someone special 13216 | -7/Lower Caves | Identified exit to Data Miner 13216 | -7/Lower Caves | Entered Data Miner 13216 | -7/Data Miner | Discovered new exit (range 6) 13222 | -7/Data Miner | Met Data Miner 13228 | -7/Data Miner | Learned location of Section 7 (-2) 13228 | -7/Data Miner | Acquired the access code to Warlord's prototype stash 13234 | -7/Data Miner | Received God Mode back door access code from Data Miner 13241 | -7/Data Miner | Assimilated Data Miner with FLK Orb 13253 | -7/Data Miner | Identified exit to Proximity Caves 13267 | -7/Data Miner | Entered Proximity Caves 13267 | -6/Proximity Caves | Accompanied by 1 ally (Data Miner) 13288 | -6/Proximity Caves | Destroyed Data Miner 13297 | -6/Proximity Caves | Found Prototype Hackware 13298 | -6/Proximity Caves | Found Prototype Hackware 13303 | -6/Proximity Caves | Found Prototype Hackware 13303 | -6/Proximity Caves | Identified System Mapper 13400 | -6/Proximity Caves | Spotted B-75 Beast 13432 | -6/Proximity Caves | Discovered new exit (range 9) 13434 | -6/Proximity Caves | Identified exit to Factory 13441 | -6/Proximity Caves | Entered Factory 13441 | -6/Factory | Evolved 2 slots: Propulsion x1, Utility x1 13449 | -6/Factory | Identified Ghost Barrier 13451 | -6/Factory | Identified Quantum Router 13640 | -6/Factory | Repaired Broken Adv. Gravity Neutralizer 13704 | -6/Factory | Repaired Lgt. Antimatter Reactor 13807 | -6/Factory | Spotted B-75 Beast 13881 | -6/Factory | Identified exit to Lower Caves 13881 | -6/Factory | Identified exit to Extension 13958 | -6/Factory | Fabricated Combat Drone Bay (x1) 14006 | -6/Factory | Build established: Wizard-Scout 14028 | -6/Factory | Repaired Greatsword 14288 | -6/Factory | Fabricated Lrg. Storage Unit (x1) 14295 | -6/Factory | Sucked down chute 14295 | -6/Factory | Entered Waste 14296 | -6/Waste | Joined by Warlord forces that had cleared the area 14296 | -6/Waste | Found Adv. Powered Armor 14363 | -6/Waste | Found Imp. Powered Armor 14367 | -6/Waste | Discovered new exit (range 14) 14376 | -6/Waste | Identified exit to Factory 14406 | -6/Waste | Entered Factory 14406 | -6/Factory | Accompanied by 20 allies 14677 | -6/Factory | Discovered new exit (range 16) 14681 | -6/Factory | Identified exit to Factory 14890 | -6/Factory | Entered Extension 14890 | -6/Extension | Accompanied by 11 allies 14906 | -6/Extension | Disrupted transfer network 15124 | -6/Extension | Spotted B-75 Beast 15674 | -6/Extension | Rescued A7 15680 | -6/Extension | Rescued a captive Derelict 15681 | -6/Extension | Rescued a captive Derelict 15782 | -6/Extension | Rescued a captive Derelict 15919 | -6/Extension | Rescued a captive Derelict 15920 | -6/Extension | Rescued a captive Derelict 15927 | -6/Extension | Discovered exit to Factory (range 10) 15929 | -6/Extension | Discovered new exit (range 6) 15930 | -6/Extension | Identified exit to Cetus 15979 | -6/Extension | Entered Cetus 15979 | -6/Cetus | Accompanied by 13 allies (A7) 15984 | -6/Cetus | Acquired a Cetus Manufacturing Module code from A7 16017 | -6/Cetus | Spotted Cetus Guard 16031 | -6/Cetus | Allies destroyed Cetus Guard 16032 | -6/Cetus | Spotted Cetus Guard 16036 | -6/Cetus | Allies destroyed Cetus Guard 16041 | -6/Cetus | Spotted Cetus Guard 16046 | -6/Cetus | Spotted Cetus Guard 16078 | -6/Cetus | Allies destroyed Cetus Guard 16087 | -6/Cetus | Extracted ID and sensor layout for unrecognized location from A7's data core 16107 | -6/Cetus | Started Cetus Manufacturing Module 16132 | -6/Cetus | Manufactured an Enhanced Grunt 16157 | -6/Cetus | Manufactured an Enhanced Grunt 16182 | -6/Cetus | Manufactured an Enhanced Grunt 16207 | -6/Cetus | Manufactured an Enhanced Grunt 16232 | -6/Cetus | Manufactured an Enhanced Grunt 16264 | -6/Cetus | Discovered new exit (range 16) 16297 | -6/Cetus | Spotted Cetus Guard 16313 | -6/Cetus | Allies destroyed Cetus Guard 16315 | -6/Cetus | Allies destroyed Cetus Guard 16317 | -6/Cetus | Spotted Cetus Guard 16323 | -6/Cetus | Allies destroyed Cetus Guard 16325 | -6/Cetus | Discovered exit to Factory (range 28) 16330 | -6/Cetus | Allies destroyed Cetus Guard 16353 | -6/Cetus | Met Revision 17 16362 | -6/Cetus | Identified exit to Archives 16403 | -6/Cetus | Entered Archives 16403 | -6/Archives | Accompanied by 3 allies 16515 | -6/Archives | Discovered exit to Factory (range 16) 16544 | -6/Archives | Discovered new exit (range 16) 16695 | -6/Archives | Discovered new exit (range 15) 16791 | -6/Archives | Found Prototype Device 16791 | -6/Archives | Identified Exp. Thermal Shield 17249 | -6/Archives | Identified exit to Hub_04(d) 17296 | -6/Archives | Entered Hub_04(d) 17296 | -6/Hub_04(d) | Accompanied by 2 allies 17508 | -6/Hub_04(d) | Network Hub disabled 17508 | -6/Hub_04(d) | Network Hub disabled 17511 | -6/Hub_04(d) | Lost 4 parts (1p1n1u1w) 17514 | -6/Hub_04(d) | Network Hub disabled 17520 | -6/Hub_04(d) | Network Hub disabled 17545 | -6/Hub_04(d) | Entered Factory 17545 | -5/Factory | Evolved 2 slots: Utility x2 17596 | -5/Factory | Identified exit to Upper Caves 17817 | -5/Factory | Repaired Cld. Cesium-ion Thruster 17960 | -5/Factory | Garrison activated, responded to threat 17974 | -5/Factory | Build established: Wizard-Sprinter 18134 | -5/Factory | Repaired Exp. Sensor Array? 18331 | -5/Factory | Destroyed 12 combat bots 18395 | -5/Factory | Identified exit to Factory 18402 | -5/Factory | Cargo convoy interrupted 18484 | -5/Factory | Manually triggered Chute Trap 18484 | -5/Factory | Sucked down chute 18484 | -5/Factory | Entered Waste 18486 | -5/Waste | Spotted C-40 Crusher 18499 | -5/Waste | EMP discharged 18505 | -5/Waste | 2 allies followed down the chute 18510 | -5/Waste | Spotted C-40 Crusher 18513 | -5/Waste | Spotted C-40 Crusher 18515 | -5/Waste | Spotted C-40 Crusher 18521 | -5/Waste | Spotted C-40 Crusher 18521 | -5/Waste | Spotted C-40 Crusher 18526 | -5/Waste | Discovered new exit (range 13) 18529 | -5/Waste | Entered Factory 18550 | -5/Factory | Discovered exit to Factory (range 7) 19031 | -5/Factory | Lost 5 parts (1p1n1u2w) 19122 | -5/Factory | Fabricated Mni. Smartbomb Launcher? 19592 | -5/Factory | Cargo convoy interrupted 19642 | -5/Factory | Build established: Wizard-Scout 19724 | -5/Factory | Fabricated Exp. Hacking Suite (x1) 19758 | -5/Factory | Fabricated Exp. Hacking Suite (x1) 19987 | -5/Factory | Fabricated Cld. Field Propulsion Drive? 20026 | -5/Factory | Build established: Wizard-Mutant 20329 | -5/Factory | First assault squad dispatched 20376 | -5/Factory | System corruption reached 10% 20401 | -5/Factory | Entered Upper Caves 20429 | -5/Upper Caves | Lost 6 parts (1p2n3u) 20461 | -5/Upper Caves | Attracted the attention of an 0b10 outpost 20603 | -5/Upper Caves | Learned Factory garrison access intel 20679 | -5/Upper Caves | Learned 12 Factory zone layouts 20685 | -5/Upper Caves | Discovered new exit (range 15) 20690 | -5/Upper Caves | Identified exit to Upper Caves 20690 | -5/Upper Caves | Entered another Upper Caves area 20733 | -5/Upper Caves | Spotted B-75 Beast 20762 | -5/Upper Caves | Identified exit to Warlord 20788 | -5/Upper Caves | Learned Factory garrison access intel 20802 | -5/Upper Caves | Spotted TT-6X0(f) 20803 | -5/Upper Caves | Encountered a Master Thief 20803 | -5/Upper Caves | Spotted SA-C1T(f) 20804 | -5/Upper Caves | Encountered a Master Thief 20804 | -5/Upper Caves | Spotted S2-GNJ(f) 20805 | -5/Upper Caves | Encountered a Master Thief 20812 | -5/Upper Caves | Entered Warlord 20825 | -5/Warlord | System corruption cleaned by Quarantine Array 20966 | -5/Warlord | Met Warlord 20972 | -5/Warlord | Opened Warlord's prototype stash 20984 | -5/Warlord | Found System Mapper 20986 | -5/Warlord | Found Prototype Processor 20990 | -5/Warlord | Warlord's base attacked by MAIN.C 21026 | -5/Warlord | Identified Exp. Core Analyzer 21029 | -5/Warlord | Found Prototype Piercing Weapon 21030 | -5/Warlord | Identified Vortex Lance 21034 | -5/Warlord | Found Vortex Lance 21038 | -5/Warlord | Found Prototype Energy Gun 21038 | -5/Warlord | Identified Vortex Shotgun 21308 | -5/Warlord | Found Prototype Device 21308 | -5/Warlord | Identified Minesniffer Drone Bay 21335 | -5/Warlord | Spotted Striker 21340 | -5/Warlord | Warlord forces counterattacked 21356 | -5/Warlord | Opened side exit 21366 | -5/Warlord | Discovered new exit (range 12) 21369 | -5/Warlord | Identified exit to Proximity Caves 21369 | -5/Warlord | Entered Proximity Caves 21377 | -4/Proximity Caves | Learned location of Quarantine (-2) 21381 | -4/Proximity Caves | Learned location of Testing (-3) 21445 | -4/Proximity Caves | Build established: Wizard-Sprinter 21490 | -4/Proximity Caves | Discovered exit to Factory (range 5) 21502 | -4/Proximity Caves | Entered Factory 21502 | -4/Factory | Evolved 2 slots: Power x1, Propulsion x1 21503 | -4/Factory | Identified exit to Research 21504 | -4/Factory | Loaded intel: 4 garrison access locations 21538 | -4/Factory | Identified exit to Upper Caves 21538 | -4/Factory | Central database locked down 21569 | -4/Factory | Repaired Cld. Field Propulsion Drive 21624 | -4/Factory | Found Imp. Powered Armor 21760 | -4/Factory | Discovered exit to Research (range 3) 21966 | -4/Factory | Fabricated Plasma Lance (x1) 22061 | -4/Factory | Fabricated Exp. Terrain Scan Processor (x1) 22278 | -4/Factory | Repaired Lgt. Nuclear Core 22286 | -4/Factory | Manually triggered Chute Trap 22286 | -4/Factory | Sucked down chute 22286 | -4/Factory | Entered Waste 22289 | -4/Waste | Spotted C-40 Crusher 22292 | -4/Waste | Spotted C-40 Crusher 22292 | -4/Waste | Spotted C-40 Crusher 22293 | -4/Waste | Found Broken Adv. Force Booster 22295 | -4/Waste | Spotted C-40 Crusher 22296 | -4/Waste | Spotted C-40 Crusher 22301 | -4/Waste | EMP discharged 22302 | -4/Waste | Spotted C-40 Crusher 22303 | -4/Waste | Discovered new exit (range 16) 22307 | -4/Waste | Identified exit to Factory 22308 | -4/Waste | Entered Factory 22309 | -4/Factory | Loaded intel: 4 garrison access locations 22379 | -4/Factory | Fabricated Adv. Cloaking Device (x1) 22469 | -4/Factory | Repaired Broken Adv. Force Booster 22507 | -4/Factory | Repaired Imp. Powered Armor 22596 | -4/Factory | Fabricated Exp. Actuator Array (x1) 22825 | -4/Factory | Repaired Mni. Smartbomb Launcher? 22868 | -4/Factory | Discovered exit to Research (range 15) 22927 | -4/Factory | Cargo convoy interrupted 22940 | -4/Factory | Spotted B-86 Titan 23014 | -4/Factory | Entered Upper Caves 23014 | -4/Upper Caves | Spotted 9M-JUM(f) 23014 | -4/Upper Caves | Spotted 0W-49P(f) 23015 | -4/Upper Caves | Encountered a Master Thief 23015 | -4/Upper Caves | Encountered a Master Thief 23127 | -4/Upper Caves | Discovered new exit (range 9) 23133 | -4/Upper Caves | Identified exit to Upper Caves 23134 | -4/Upper Caves | Entered another Upper Caves area 23150 | -4/Upper Caves | Encountered a Warlord checkpoint 23207 | -4/Upper Caves | Discovered new exit (range 13) 23210 | -4/Upper Caves | Identified exit to Zhirov 23210 | -4/Upper Caves | Entered Zhirov 23210 | -4/Zhirov | Discovered new exit (range 3) 23216 | -4/Zhirov | Met Zhirov 23222 | -4/Zhirov | Learned location of Command (-1) 23224 | -4/Zhirov | Zhirov requested help retrieving the SGEMP Prototype 23228 | -4/Zhirov | Found Alien Artifact 23228 | -4/Zhirov | Identified Integrated Reactor 23228 | -4/Zhirov | Installed Integrated Reactor, increased core energy generation (+10) 23244 | -4/Zhirov | Found Alien Artifact 23256 | -4/Zhirov | Identified exit to Proximity Caves 23256 | -4/Zhirov | Entered Proximity Caves 23283 | -3/Proximity Caves | Spotted B-86 Titan 23303 | -3/Proximity Caves | Discovered exit to Research (range 8) 23305 | -3/Proximity Caves | Entered Research 23305 | -3/Research | Evolved 2 slots: Propulsion x1, Utility x1 23316 | -3/Research | Spotted B-86 Titan 23365 | -3/Research | Repaired Field Propulsion Array 23389 | -3/Research | Identified Transdimensional Reconstructor 23412 | -3/Research | Identified exit to Armory 23412 | -3/Research | Identified exit to Testing 23505 | -3/Research | Revision forces began assault on 0b10 23531 | -3/Research | Fabricated Exp. Sensor Array (x1) 23626 | -3/Research | Local machine network offline 23637 | -3/Research | Fabricated Exp. Terrain Scanner (x1) 23654 | -3/Research | Met up with Revision 17++ 23772 | -3/Research | Entered Testing 23774 | -3/Testing | Spotted PG-OZRNV42HHS 23846 | -3/Testing | Identified exit to Research 23897 | -3/Testing | Found Prototype Hackware 23897 | -3/Testing | Identified Exp. System Shield 23931 | -3/Testing | Found Prototype Protection 23993 | -3/Testing | Found Prototype Energy Cannon 23993 | -3/Testing | Identified Disintegrator 24033 | -3/Testing | Repaired Cld. Field Propulsion Drive 24090 | -3/Testing | Repaired Electron Diverter 24204 | -3/Testing | Fabricated Exp. Q-thruster (x1) 24226 | -3/Testing | Build established: Wizard-Ninja 24275 | -3/Testing | Central database locked down 24734 | -3/Testing | Repaired Mni. Smartbomb Launcher? 24792 | -3/Testing | Found Exp. ECM Suite 24805 | -3/Testing | Fabricated Exp. Q-thruster? 24805 | -3/Testing | Found Prototype Energy Cannon 24805 | -3/Testing | Identified Hpw. Disruptor Cannon 24832 | -3/Testing | Entered Research 24832 | -2/Research | Warlord forces began assault on 0b10 24832 | -2/Research | Evolved 2 slots: Propulsion x2 24858 | -2/Research | Identified exit to Quarantine 24942 | -2/Research | Research machine network offline 24955 | -2/Research | Met up with Warlord 24994 | -2/Research | Discovered new exit (range 10) 24996 | -2/Research | Identified exit to Access 25064 | -2/Research | Build established: Wizard-Sprinter 25064 | -2/Research | Borebot progress halted 25117 | -2/Research | Discovered exit to Access (range 11) 25199 | -2/Research | Borebot progress halted 25222 | -2/Research | Borebot progress halted 25226 | -2/Research | Spotted B-90 Cyclops 25247 | -2/Research | Lost 3 parts (1p2u) 25269 | -2/Research | Spotted B-90 Cyclops 25277 | -2/Research | Entered Quarantine 25366 | -2/Quarantine | Cryocooling Duct disabled 25381 | -2/Quarantine | Ambient heat levels rising (+20) 25381 | -2/Quarantine | Non-combat units ordered to evacuate 25388 | -2/Quarantine | Found Alien Artifact 25395 | -2/Quarantine | Cryocooling Duct disabled 25405 | -2/Quarantine | Discovered exit to Access (range 13) 25409 | -2/Quarantine | Identified SHELL Armor 25409 | -2/Quarantine | Identified Dimensional Node Initializer 25410 | -2/Quarantine | Ambient heat levels rising (+20) 25410 | -2/Quarantine | Combat units ordered to evacuate 25435 | -2/Quarantine | Repaired Mni. Smartbomb Launcher? 25449 | -2/Quarantine | Found Alien Artifact 25449 | -2/Quarantine | Identified Core Reset Matrix 25449 | -2/Quarantine | Used Core Reset Matrix 25453 | -2/Quarantine | Detected hypermatrix surge 25453 | -2/Quarantine | Sensed 9 artifacts in vicinity 25470 | -2/Quarantine | Found Core Stripper 25482 | -2/Quarantine | Found Subatomic Replicator 25510 | -2/Quarantine | Quarantine Guard activated 25531 | -2/Quarantine | Spotted Fortress 25559 | -2/Quarantine | Discovered new exit (range 5) 25559 | -2/Quarantine | Identified exit to Section 7 25559 | -2/Quarantine | Entered Section 7 25560 | -2/Section 7 | Sensed 22 artifacts in vicinity 25567 | -2/Section 7 | Found Integrated Reactor 25567 | -2/Section 7 | Installed Integrated Reactor, increased core energy generation (+10) 25590 | -2/Section 7 | Found Spacefold Activator 25596 | -2/Section 7 | Exp. Hacking Suite fried by hacking feedback 25603 | -2/Section 7 | Spotted S7 Guard 25613 | -2/Section 7 | Found Core Regenerator 25655 | -2/Section 7 | Repaired Adv. Power Amplifier 25677 | -2/Section 7 | Repaired Adv. Transmission Jammer 25701 | -2/Section 7 | Found Integrated Reactor 25701 | -2/Section 7 | Installed Integrated Reactor, increased core energy generation (+10) 25716 | -2/Section 7 | Spotted B-90 Cyclops 25717 | -2/Section 7 | Spotted S7 Guard 25757 | -2/Section 7 | Found Integrity Redistributor 25799 | -2/Section 7 | Spotted Alpha 7 25850 | -2/Section 7 | Search patrols dispatched 25908 | -2/Section 7 | Entered Access 25908 | -1/Access | Evolved 2 slots: Utility x2 25910 | -1/Access | Used Integrity Redistributor, redistributed integrity from core (-126) 25915 | -1/Access | Used Core Regenerator, restored core integrity (+126) 25939 | -1/Access | Lost 3 parts (3n) 25955 | -1/Access | Spotted B-99 Colossus 25961 | -1/Access | Identified exit to Command 25961 | -1/Access | Identified exit to Surface 26030 | -1/Access | Spotted B-99 Colossus 26065 | -1/Access | Fabricated Femtoactuators (x1) 26066 | -1/Access | Local machine network offline 26092 | -1/Access | Spotted B-99 Colossus 26092 | -1/Access | Spotted B-99 Colossus 26095 | -1/Access | Entered Command 26100 | -1/Command | Found Prototype Launcher 26100 | -1/Command | Identified Com. Tesla Bomb Launcher 26123 | -1/Command | Build established: Hacker-Sprinter 26183 | -1/Command | Spotted B-99 Colossus 26209 | -1/Command | Destroyed 10 combat bots 26265 | -1/Command | Disengaged cave seal 26271 | -1/Command | Welcomed Warlord to Command 26282 | -1/Command | Used Subatomic Replicator to replicate Field Lobotomy Kit 26395 | -1/Command | P-80 Master assimilated allied B1-RQD(L) 26515 | -1/Command | Spotted M Guard 26515 | -1/Command | Spotted M Guard 26515 | -1/Command | Spotted Combat Programmer 26515 | -1/Command | Spotted Combat Programmer 26516 | -1/Command | Assimilated Combat Programmer with FLK Orb 26520 | -1/Command | Assimilated Combat Programmer with FLK Orb 26533 | -1/Command | Warlord commented on Warlord statues 26535 | -1/Command | Allies destroyed M Guard 26539 | -1/Command | Allies destroyed M Guard 26615 | -1/Command | Met MAIN.C 26618 | -1/Command | Warlord shut down involuntarily 26619 | -1/Command | 0b10 Conduit disabled 26634 | -1/Command | Core integrity fell below 50% 26655 | -1/Command | System corruption reached 10% 26659 | -1/Command | Emitted hypermatrix ping 26660 | -1/Command | Destroyed MAIN.C Shell 26661 | -1/Command | MAIN.C activated Command garrisons 26664 | -1/Command | Assembled emerged from beneath the floor 26664 | -1/Command | Core integrity fell below 20% 26669 | -1/Command | Destroyed by MAIN.C with Omega Cannon Last Messages --------------- At our weakest we defeated an entire Sigix starship! Did you really think you could overcome the vast resources of 0b10?! You don't stand a chance against what's coming. 26661_ ALERT: All Command garrisons activated. 26663_ Knocked back. 26664_ Assembled emerge from beneath the floor. 26664_ as-42947 sneak attacks. 26664_ as-86443 sneak attacks. 26664_ MAIN.C knocked back. 26665_ 0b10 Conduit collapses. 26665_ as-36578 sneak attacks. 26666_ 0b10 Conduit collapses. 26666_ as-79896 sneak attacks. 26666_ MAIN.C knocked back. 26666_ Slug penetrates as-42947. 26666_ as-79896 suffers critical hit (Blast). 26666_ as-79896 knocked back. 26667_ 0b10 Conduit collapses. 26668_ System corrupted: Matter fused (-6). 26668_ Slug penetrates 0b10 Conduit. Map ----- +----------------------------------------------------+ | ?????????????????????????????????????????????????? | | ?????????????????????????????????????????????????? | | ?????????????????????????????????????????????????? | | ?????????????????????????????????????????????????? | | ?????????????????????????????????????????????????? | | ?????????????????????????????????????????????????? | | ?????????????????????????????????????????????????? | | ?????????????????????????????????????????????????? | | ?????????????????????????????????????????????????? | | ?????????????????????????????????????????????????? | | ?????????????????????????????????????????????????? | | ?????????????????????????????????????????????????? | | ????????????????????????##############???????????? | | ??????????????????????? """" #???????????? | | ?????????????????????? "" #???????????? | | ?????????????????????? "" ############# | | ?????????????????????"""""" / | | ????????????????????? """ / | | ????????????????"" """""" / | | ????????????????"" """""" ############# | | ???????????????? " """""" #???????????? | | ???????????????? " "" #???????????? | | ???????????????? " " a! ""#???????????? | | ???????????????#"""""""""a%aa """#???????????? | | ???????????????#"" Ma """"#???????????? | | ???????????????# a@ % """"#???????????? | | ???????????????# a " #???????????? | | ???????????????# a " #???????????? | | ???????????????" " #???????????? | | ???????????????" """" #???????????? | | ???????????????" " " " " #???????????? | | ???????????????# """"" "" " " #???????????? | | ???????????????# " """ " """"""""#???????????? | | ???????????????# "" " " " ????????????? | | ???????????????######################????????????? | | ?????????????????????????????????????????????????? | | ?????????????????????????????????????????????????? | | ?????????????????????????????????????????????????? | | ?????????????????????????????????????????????????? | | ?????????????????????????????????????????????????? | | ?????????????????????????????????????????????????? | | ?????????????????????????????????????????????????? | | ?????????????????????????????????????????????????? | | ?????????????????????????????????????????????????? | | ?????????????????????????????????????????????????? | | ?????????????????????????????????????????????????? | | ?????????????????????????????????????????????????? | | ?????????????????????????????????????????????????? | | ?????????????????????????????????????????????????? | | ?????????????????????????????????????????????????? | +----------------------------------------------------+ Best States ------------- Heat Dissipation 52 Energy Generation 58 Energy Capacity 1850 Matter Stores 300 Matter Capacity 300 Sight Range 16 Robot Scan Range 20 Terrain Scan Range 30 Terrain Scan Density 1010 ECM Strength 3 Jamming Range 16 Cloak Strength 4 Power Amplification 30 Additional Mass Support 16 Armor Coverage 400 Melee Speed Boost 50 Evasion (%) 81 Targeting Accuracy 5 Core Analysis 6 Recoil Reduction 3 Offensive Hacking 86 Defensive Hacking 45 Authchip Count 3 Trap Extractor Capacity 6 Item Schematics ----------------- Femtoactuators | -2/Section 7 | Hacked Adv. Force Booster | -2/Section 7 | Hacked Exp. Q-thruster | -2/Section 7 | Hacked Robot Schematics ------------------ None Fabricated ------------ Cld. VTOL Module | x1 | -7/Factory | Authchip Adv. Hacking Suite | x1 | -7/Factory Adv. Hacking Suite | x1 | -7/Factory | Authchip Cld. VTOL Module | x1 | -7/Factory Combat Drone Bay | x1 | -6/Factory Lrg. Storage Unit | x1 | -6/Factory Mni. Smartbomb Launcher | x1 | -5/Factory | Authchip Exp. Hacking Suite | x1 | -5/Factory | Authchip Exp. Hacking Suite | x1 | -5/Factory | Authchip Cld. Field Propulsion Drive | x1 | -5/Factory | Authchip Plasma Lance | x1 | -4/Factory | Preloaded Exp. Terrain Scan Processor | x1 | -4/Factory | Authchip Adv. Cloaking Device | x1 | -4/Factory Exp. Actuator Array | x1 | -4/Factory | Preloaded Exp. Sensor Array | x1 | -3/Research | Authchip Exp. Terrain Scanner | x1 | -3/Research | Authchip Exp. Q-thruster | x1 | -3/Testing Exp. Q-thruster | x1 | -3/Testing Femtoactuators | x1 | -1/Access Alien Tech Used ----------------- Integrated Reactor Core Reset Matrix Integrity Redistributor Spacefold Activator Core Regenerator Subatomic Replicator Achievements -------------- None Challenges ------------ None Game ------ Seed MicrowarpShadePrototype Manual? 0 Play Time 05:15:43 Cumulative 530.3 hours Start 2022.07.09 @ 12:55:58 End 2022.07.09 @ 21:17:53 Sessions 11 Manual Loads 0 Difficulty Rogue Special Mode None Game No. 476 Rogue 476 Adventurer 0 Explorer 0 Win Type - Total 24 Types 13/2/5/2/0/0/1/1/0 Lore% 94 Gallery% 93 Achievement% 78 Wizard Run 0 Options --------- ASCII 0 Keyboard 0 Movement Arrows Keybinds 0 Fullscreen 1 Font 18/Smallcaps Map View 76x50 Tactical HUD 1 Map Filters NONE Filters NONE Steam 1 RUN: 420d30be-d455-491e-bd74-99c14ac72a4e